Workbook

Sheet Cover Page
B18: Checklist to Identify the Gaps in Quality Improvement of Tertiary Hospitals
B19: ='Summary Sheet'!A3 -> Hospital Name
C20: =IF('Summary Sheet'!$C$7>0, 'Summary Sheet'!$C$7, "") ->  | G20: ='Summary Sheet'!D7 -> 
C22: Assessment Team
B23: Team Leader : | D23: =IF('Summary Sheet'!$C$10>0, 'Summary Sheet'!$C$10,"") -> 
A24: Other Team Members : | D24: =IF('Summary Sheet'!$C$12>0,'Summary Sheet'!$C$12,"") -> 
C29: Assessment Date | F29: ='Summary Sheet'!C5 -> 00:00:00
F30: ='Summary Sheet'!H5&" "&'Summary Sheet'!G5&" , "&'Summary Sheet'!I5 -> महिना दिन , साल
B37: Government of Nepal Ministry of Health and Population Quality Standards and Regulation Division

Sheet Summary Sheet
A1: SUMMARY SHEET TERTIARY HOSPITAL
A3: Hospital Name
A5: Date of Assessment: | G5: दिन | H5: महिना | I5: साल
A7: Event: | D7: =IF(C7>0, "?", "") -> 
A9: Assessment Team
A10: Team Leader :
A12: Other Members :
A15: Section Number | B15: Section Name | F15: No. of standards | G15: Max score | H15: Obtained Score | I15: Obtained Percentage
A16: SECTION I : | B16: Governance and Management Standards (20% Weightage)
A17: Governance | F17: =COUNTA(Standards!D5:D8,Standards!D10:D32) -> 27 | G17: =Standards!$F$33 -> 27 | H17: =Standards!$E$33 -> 0 | I17: =$H17/$G17 -> 0.00%
A18: Organizational Management | F18: =COUNTA(Standards!D39:D50,Standards!D52:D57) -> 18 | G18: =Standards!$F$58 -> 18 | H18: =Standards!$E$58 -> 0 | I18: =$H18/$G18 -> 0.00%
A19: Human Resources Management and Development | F19: =COUNTA(Standards!D65:D82) -> 18 | G19: =Standards!$F$83 -> 19 | H19: =Standards!$E$83 -> 0 | I19: 0.00%
A20: Financial Management | F20: =COUNTA(Standards!D90:D106) -> 17 | G20: =Standards!$F$107 -> 17 | H20: =Standards!$E$107 -> 0 | I20: 0.00%
A21: Medical Records and Information Management | F21: =COUNTA(Standards!D114:D127) -> 14 | G21: =Standards!$F$128 -> 14 | H21: =Standards!E128 -> 0 | I21: 0.00%
A22: Quality Management | F22: =COUNTA(Standards!D135:D144,Standards!D146:D150) -> 15 | G22: =Standards!$F$151 -> 17 | H22: =Standards!E151 -> 0 | I22: 0.00%
A23: Total Governance and Management Standards | F23: =SUM(F17:F22) -> 109 | G23: =SUM($G$17:$G$22) -> 112 | H23: =SUM($H$17:$H$22) -> 0 | I23: =$H$23/$G$23 -> 0.00%
A24: SECTION II : | B24: Clinical Management (60% Weightage)
A25: OPD Service | F25: =COUNTA(Standards!D159:D169,Standards!D171:D188,Standards!D190:D219) -> 59 | G25: =Standards!$F$220 -> 151 | H25: =Standards!E220 -> 0 | I25: =$H25/$G25 -> 0.00%
A26: Special Clinic | F26: =COUNTA(Standards!D229:D243,Standards!D251:D267,Standards!D275:D292,Standards!D300:D318) -> 69 | G26: =Standards!$F$244+Standards!$F$268+Standards!$F$293+Standards!$F$319 -> 75 | H26: =Standards!$E$244+Standards!$E$268+Standards!$E$293+Standards!$E$319 -> 0 | I26: 0.00%
A27: Emergency Service | F27: =COUNTA(Standards!D326:D364) -> 39 | G27: =Standards!$F$365 -> 47 | H27: =Standards!$E$365 -> 0 | I27: 0.00%
A28: Emergency Minor Operation Theatre (OT) | F28: =COUNTA(Standards!D372:D386) -> 15 | G28: =Standards!F387 -> 27 | H28: =Standards!E387 -> 0 | I28: 0.00%
A29: Hospital Pharmacy Service | F29: =COUNTA(Standards!D394:D397,Standards!D399:D433) -> 39 | G29: =Standards!F434 -> 43 | H29: =Standards!E434 -> 0 | I29: 0.00%
A30: Inpatient Service | F30: =COUNTA(Standards!D440:D444,Standards!D446:D461,Standards!D463:D476,Standards!D478:D508) -> 66 | G30: =Standards!F509 -> 170 | H30: =Standards!E509 -> 0 | I30: 0.00%
A31: Delivery Service | F31: =COUNTA(Standards!D516:D520,Standards!D522:D550) -> 34 | G31: =Standards!F551 -> 40 | H31: =Standards!E551 -> 0 | I31: 0.00%
A32: Maternity Inpatient Service (General Ward) | F32: =COUNTA(Standards!D558:D585) -> 28 | G32: =Standards!F586 -> 34 | H32: =Standards!E586 -> 0 | I32: 0.00%
A33: Birthing Center | F33: =COUNTA(Standards!D594:D601,Standards!D603:D626) -> 32 | G33: =Standards!F627 -> 38 | H33: =Standards!E627 -> 0 | I33: 0.00%
A34: Surgery/Operation Service | F34: =COUNTA(Standards!D634:D659,Standards!D661:D675,Standards!D677:D687) -> 52 | G34: =Standards!F688 -> 78 | H34: =Standards!E688 -> 0 | I34: 0.00%
A35: Hemodialysis | F35: =COUNTA(Standards!D694:D731) -> 38 | G35: =Standards!F732 -> 42 | H35: =Standards!E732 -> 0 | I35: 0.00%
A36: Intensive Care Unit (ICU) | F36: =COUNTA(Standards!D740:D744,Standards!D746:D748,Standards!D750:D781) -> 40 | G36: =Standards!F782 -> 46 | H36: =Standards!E782 -> 0 | I36: =$H36/$G36 -> 0.00%
A37: NICU | F37: =COUNTA(Standards!D788:D793,Standards!D795:D826) -> 38 | G37: =Standards!F827 -> 42 | H37: =Standards!E827 -> 0 | I37: 0.00%
A38: PICU | F38: =COUNTA(Standards!D833:D837,Standards!D839:D870) -> 37 | G38: =Standards!F871 -> 41 | H38: =Standards!E871 -> 0 | I38: 0.00%
A39: Diagnostics and Laboratory Services | F39: =COUNTA(Standards!D879:D911,Standards!D919:D941,Standards!D948:D969,Standards!D977:D988,Standards!D994:D1014,Standards!D1020:D1040,Standards!D1048:D1057,Standards!D1064:D1075,Standards!D1081:D1093,Standards!D1100:D1119,Standards!D1126:D1137) -> 199 | G39: =Standards!F912+Standards!F942+Standards!F970+Standards!F989+Standards!F1015+Standards!F1041+Standards!F1058+Standards!F1076+Standards!F1094+Standards!F1120+Standards!F1138 -> 210 | H39: =Standards!E912+Standards!E942+Standards!E970+Standards!E989+Standards!E1015+Standards!E1041+Standards!E1058+Standards!E1076+Standards!E1094+Standards!E1120+Standards!E1138 -> 0 | I39: 0.00%
A40: Post-mortem and mortuary service | F40: =COUNTA(Standards!D1144:D1158) -> 15 | G40: =Standards!F1159 -> 17 | H40: =Standards!E1159 -> 0 | I40: 0.00%
A41: Medico-legal Services | F41: =COUNTA(Standards!D1166:D1177) -> 12 | G41: =Standards!F1178 -> 14 | H41: =Standards!E1178 -> 0 | I41: 0.00%
A42: One stop crisis management services | F42: =COUNTA(Standards!D1184:D1210) -> 27 | G42: =Standards!F1211 -> 33 | H42: =Standards!E1211 -> 0 | I42: 0.00%
A43: Physiotherapy Services | F43: =COUNTA(Standards!D1217:D1236) -> 20 | G43: =Standards!F1237 -> 22 | H43: =Standards!E1237 -> 0 | I43: 0.00%
A44: Dietetics and Nutrition Rehabilitation | F44: =COUNTA(Standards!D1244:D1251,Standards!D1253:D1266) -> 22 | G44: =Standards!F1267 -> 22 | H44: =Standards!E1267 -> 0 | I44: 0.00%
A45: Cardiac Catheterization Laboratory | F45: =COUNTA(Standards!D1273:D1276,Standards!D1278:D1293,Standards!D1295:D1302) -> 28 | G45: =Standards!F1303 -> 36 | H45: =Standards!E1303 -> 0 | I45: 0.00%
A46: Total Clinical Service Management Standards | F46: =SUM(F25:F45) -> 909 | G46: =SUM($G$25:$G$45) -> 1228 | H46: =SUM($H$25:$H$45) -> 0 | I46: =$H$46/$G$46 -> 0.00%
A47: SECTION III : | B47: Hospital Support Services Standards (20% Weightage)
A48: Central Supply Sterile Department (CSSD) | F48: =COUNTA(Standards!D1310:D1326) -> 17 | G48: =Standards!F1327 -> 19 | H48: =Standards!E1327 -> 0 | I48: =$H48/$G48 -> 0.00%
A49: Laundry | F49: =COUNTA(Standards!D1335:D1351) -> 17 | G49: =Standards!F1352 -> 19 | H49: =Standards!E1352 -> 0 | I49: 0.00%
A50: Housekeeping | F50: =COUNTA(Standards!D1359:D1371) -> 13 | G50: =Standards!F1372 -> 15 | H50: =Standards!E1372 -> 0 | I50: 0.00%
A51: Repair, Maintenance and Power System | F51: =COUNTA(Standards!D1379:D1390) -> 12 | G51: =Standards!F1391 -> 12 | H51: =Standards!E1391 -> 0 | I51: 0.00%
A52: Water Supply | F52: =COUNTA(Standards!D1398:D1401) -> 4 | G52: =Standards!F1402 -> 4 | H52: =Standards!E1402 -> 0 | I52: 0.00%
A53: Hospital Waste Management | F53: =COUNTA(Standards!D1409:D1425) -> 17 | G53: =Standards!F1426 -> 17 | H53: =Standards!E1426 -> 0 | I53: 0.00%
A54: Safety and Security | F54: =COUNTA(Standards!D1433:D1447) -> 15 | G54: =Standards!F1448 -> 17 | H54: =Standards!E1448 -> 0 | I54: 0.00%
A55: Transportation and Communication | F55: =COUNTA(Standards!D1455:D1462) -> 8 | G55: =Standards!F1463 -> 8 | H55: =Standards!E1463 -> 0 | I55: 0.00%
A56: Store ( Medical and Logistics) | F56: =COUNTA(Standards!D1470:D1485) -> 16 | G56: =Standards!F1486 -> 16 | H56: =Standards!E1486 -> 0 | I56: 0.00%
A57: Hospital Canteen | F57: =COUNTA(Standards!D1493:D1508) -> 16 | G57: =Standards!F1509 -> 16 | H57: =Standards!E1509 -> 0 | I57: 0.00%
A58: Social Service Unit (SSU) | F58: =COUNTA(Standards!D1516:D1527) -> 12 | G58: =Standards!F1528 -> 14 | H58: =Standards!E1528 -> 0 | I58: 0.00%
A59: Total Hospital Support Services Standards | F59: =SUM(F48:F58) -> 147 | G59: =SUM($G$48:$G$58) -> 157 | H59: =SUM($H$48:$H$58) -> 0 | I59: =$H$59/$G$59 -> 0.00%
A60: Total Score | F60: =$F$23+$F$46+$F$59 -> 1165 | G60: =$G$23+$G$46+$G$59 -> 1497 | H60: =$H$23+$H$46+$H$59 -> 0
A61: Overall MSS Score (Weightage Average Score) | I61: =($I$23*0.2)+($I$46*0.6)+($I$59*0.2) -> 0%

Sheet Standards
B1: Section I: Governance and Management Standards
A2: NSI | B2: Area | C2: Code | D2: Verification
A3: NSI | B3: Governance | C3: 1.1
A4: NSI | B4: Components | C4: Std No. | D4: Standards | E4: Obtained Score | F4: Maximum Score
B5: 1.1.1 Formation of Hospital Management Committee (HMC) | C5: 1.1.1 | D5: Hospital Management Committee is formed | F5: 1
B6: 1.1.2 Capacity building of HMC | C6: 1.1.2 | D6: All HMC members have received an orientation on HMC functions | F6: 1
B7: 1.1.3 Availability of Medical Superintendent/Director | C7: 1.1.3 | D7: Medical Superintendent/ Director is fulfill as per organogram | F7: 1
B8: 1.1.4 Functional HMC | C8: 1.1.4.1 | D8: HMC meetings called upon by member secretary / Medical Superintendent headed by chairperson conducted at least 3 times per year or as per need | F8: 1
C9: 1.1.4.2 | D9: HMC meetings have covered at least following agenda (See minutes of last meetings):
C10: 1.1.4.2.1 | D10: Hospital services and utilization | F10: 1
C11: 1.1.4.2.2 | D11: Hospital’s financial issues | F11: 1
C12: 1.1.4.2.3 | D12: Patient rights issues e.g. patient facilities, analysis of complaints received, patient security | F12: 1
C13: 1.1.4.2.4 | D13: Management issues- HR issues, security issues | F13: 1
C14: 1.1.4.2.5 | D14: Infrastructure/ Equipment issues | F14: 1
C15: 1.1.4.2.6 | D15: Coordination issues with local governance- rural municipality/ municipality, provincial, federal, DoHS, MoHP | F15: 1
C16: 1.1.4.2.7 | D16: Review of decisions and recommendations of staff meeting and QI Committee meetings discussions | F16: 1
B17: 1.1.5 Support in health financing | C17: 1.1.5.1 | D17: Hospital implements health insurance program | F17: 1
C18: 1.1.5.2 | D18: All targeted women receive Aama Surakhsya program incentives on time from hospital having this program (in last quarter) | F18: 1
B19: 1.1.6 Annual plan & budget | C19: 1.1.6 | D19: Annual plan & budget is approved by HMC before the fiscal year starts | F19: 1
B20: 1.1.7Storage of HMC documents | C20: 1.1.7 | D20: There is a separate locker for HMC documents. | F20: 1
B21: 1.1.8 Accountability | C21: 1.1.8.1 | D21: Updated citizens charter is displayed | F21: 1
C22: 1.1.8.2 | D22: Notices of public concern are displayed publicly | F22: 1
C23: 1.1.8.3 | D23: Complaint boxes are kept in a visible place in administration block | F23: 1
C24: 1.1.8.4 | D24: Information officer opens complaint box at least once a week and issues are timely addressed | F24: 1
C25: 1.1.8.5 | D25: Hospital has a website available and functional with latest information | F25: 1
C26: 1.1.8.6 | D26: Hospital has geriatrics friendly infrastructure (like side rails for mobilization and support) | F26: 1
C27: 1.1.8.7 | D27: Hospital has friendly environment for people with disability | F27: 1
B28: 1.1.9 Grievance and complain handling | C28: 1.1.9.1 | D28: Mechanism for grievance and complain handling institutionalized | F28: 1
C29: 1.1.9.2 | D29: Grievance and complains are effectively addressed | F29: 1
B30: 1.1.10 Hospital has operational manual | C30: 1.1.10 | D30: Hospital its own operational manual with clear information on how the hospital operates its’ services | F30: 1
B31: 1.1.11 Hospital produces an Annual Report | C31: 1.1.11 | D31: Hospital Annual Report is available in website | F31: 1
B32: 1.1.12 Conduct social audit | C32: 1.1.12 | D32: Social audit is conducted for last year | F32: 1
A33: NSI | B33: Standard 1.1 | D33: Total Score | E33: =SUM($E$5:$E$8,$E$10:$E$32) -> 0 | F33: =SUM($F$5:$F$8,$F$10:$F$32) -> 27
A34: NSI | D34: Percentage = Total Score / 27 x 100 | E34: =$E$33/$F$33 -> 0.00%
A36: NSI | B36: Area | C36: Code | D36: Verification
A37: NSI | B37: Organizational Management | C37: 1.2
A38: NSI | B38: Components | C38: Std No. | D38: Standards | E38: Obtained Score | F38: Maximum Score
B39: 1.2.1 Organizational structure | C39: 1.2.1.1 | D39: Organogram of hospital showing departments/units with number of staffs is displayed | F39: 1
C40: 1.2.1.2 | D40: Organogram of hospital is reviewed every 2 years and forwarded to higher authority | F40: 1
C41: 1.2.1.3 | D41: Hospital provides 10 clinical services – OPD | F41: 1
C42: 1.2.1.4 | D42: Hospital provides at least 5 super-specialized clinical services | F42: 1
B43: 1.2.2 Work division and delegation of authorities | C43: 1.2.2 | D43: Written delegation of authorities is maintained | F43: 1
B44: 1.2.3 Maintaining client flow system | C44: 1.2.3 | D44: Navigation chart with services and departments guiding clients to access services | F44: 1
B45: 1.2.4 Queue system | C45: 1.2.4 | D45: Hospital implements token and / or queue system for users (separate for elderly, disable and pregnant) | F45: 1
B46: 1.2.5 E-Attendance | C46: 1.2.5 | D46: All staffs of hospital use electronic attendance | F46: 1
B47: 1.2.6 Dress code for all staffs | C47: 1.2.6.1 | D47: All clinical, technical and administrative staffs have apron / uniform which is worn on duty | F47: 1
C48: 1.2.6.2 | D48: All hospital staffs carry personal ID cards when on duty | F48: 1
B49: 1.2.7 Maintaining effective team work environment | C49: 1.2.7.1 | D49: Hand-over meetings are conducted daily and also in concerned department | F49: 1
C50: 1.2.7.2 | D50: Morning conference is conducted everyday | F50: 1
C51: 1.2.7.3 | D51: Regular meetings are conducted as follows (see meeting minutes):
C52: 1.2.7.3.1 | D52: Intra- departmental meeting every two weeks | F52: 1
C53: 1.2.7.3.2 | D53: Inter-departmental meeting once a month | F53: 1
C54: 1.2.7.3.3 | D54: Staff meeting once a month | F54: 1
C55: 1.2.7.4 | D55: Staff quarters are provided and adequate for the staffs | F55: 1
C56: 1.2.7.5 | D56: Separate space allocated for breast feeding for staffs/ Separate space in duty room designated for breast feeding | F56: 1
C57: 1.2.7.6 | D57: Transport services for hospital staffs covering all shifts | F57: 1
A58: NSI | B58: Standard 1.2 | D58: Total Score | E58: =SUM($E$39:$E$50,$E$52:$E$57) -> 0 | F58: =SUM($F$39:$F$50,$F$52:$F$57) -> 18
A59: NSI | D59: Percentage = Total Score / 16 x 100 | E59: =$E$58/$F$58 -> 0.00%
A62: NSI | B62: Area | C62: Code | D62: Verification
A63: NSI | B63: Human Resource Management and Development | C63: 1.3
A64: NSI | B64: Components | C64: Std No. | D64: Standards | E64: Obtained Score | F64: Maximum Score
B65: 1.3.1 Personnel administration policy of hospital | C65: 1.3.1 | D65: Personnel administration guideline of HMC is available (for all staffs including locally hired staff) and practiced accordingly | F65: 1
B66: 1.3.2 Human resource records | C66: 1.3.2 | D66: Individual records of all staffs including contract staffs are maintained and updated. | F66: 1
B67: 1.3.3 Staffing | C67: 1.3.3.1 | D67: Staffs available for service in hospital as per organogram (See Annex 1.3a Functional Organogram Section I: At the end of this standard) | E67: ='Annex 1.3a'!$E$53 -> 0 | F67: 3
C68: 1.3.3.2 | D68: Maaga Akriti form (माग आकृति फारम) correspondence to fulfill vacant positions to concerned authority as per guideline | F68: 1
B69: 1.3.4 Job description | C69: 1.3.4 | D69: All staffs including HMC staffs are given a job description when they are recruited/ posted to the hospital (permanent and contract staff) | F69: 1
B70: 1.3.5 Review of performance | C70: 1.3.5.1 | D70: Performance appraisal (का. स. मु.) of all staffs is done as per guideline | F70: 1
B71: 1.3.6 Motivating staff and occupational safety | C71: 1.3.6.1 | D71: A training plan for the hospital is developed based on the training needs of the staff identified at the performance appraisal | F71: 1
C72: 1.3.6.2 | D72: For training and related activities, at any point of time, the acceptable work absenteeism is <10% of staff | F72: 1
C73: 1.3.6.3 | D73: There is activity conducted to motivate staff (staff retreat, rewards, recognition of performances, etc.) at least once a year. | F73: 1
C74: 1.3.6.4 | D74: Hospital has system for addressing occupational hazard like needle stick injury, radiation exposure, vaccination | F74: 1
B75: 1.3.7 Continuous professional development (CPD)/ Continuous medical education (CME) | C75: 1.3.7.1 | D75: Hospital conducts CPD / CME classes to technical staff weekly | F75: 1
C76: 1.3.7.2 | D76: Written record of attendance, subjects presented and discussed during CPD/CME | F76: 1
C77: 1.3.7.3 | D77: Separate space with furniture, audio-visual aids and internet for CPD/CME/meeting are available. | F77: 1
C78: 1.3.7.4 | D78: If hospital is a training site, training guideline of National Health Training Centre is followed | F78: 1* (optional)
B79: 1.3.8 Library facility available | C79: 1.3.8.1 | D79: Hospital has space designated for library with sitting arrangement for readers | F79: 1
C80: 1.3.8.2 | D80: A list of national health guidelines and treatment protocols available and inventory managed for readers accessing it | F80: 1
C81: 1.3.8.3 | D81: Computers with printing and photocopy facility available | F81: 1
C82: 1.3.8.6 | D82: Access to internet facility with institutional access to at least one of the international health related domain like HINARI | F82: 1
A83: NSI | B83: Standard 1.3 | D83: Total Score | E83: =SUM($E$79:$E$82,$E$65:$E$77) -> 0 | F83: =SUM($F$79:$F$82,$F$65:$F$77) -> 19
A84: NSI | D84: Percentage = Total Score / 19 x 100 | E84: =$E$83/$F$83 -> 0.00%
A87: NSI | B87: Area | C87: Code | D87: Verification
A88: NSI | B88: Financial Management | C88: 1.4
A89: NSI | B89: Components | D89: Standards | E89: Obtained Score | F89: Maximum Score
B90: 1.4.1 Account department of hospital | C90: 1.4.1.1 | D90: Dedicated account department of hospital with space and furniture | F90: 1
C91: 1.4.1.2 | D91: At least one accountant available for hospital financial management | F91: 1
B92: 1.4.2 Formulation and approval of Annual Hospital Budget | C92: 1.4.2.1 | D92: An annual hospital budget is developed incorporating the revenue from services, government grants, and support provided by other organizations. | F92: 1
C93: 1.4.2.2 | D93: Internal income is reviewed during budgeting every year. | F93: 1
B94: 1.4.3 Service fees | C94: 1.4.3 | D94: The service fees of the hospital are fixed by HMC every year. | F94: 1
B95: 1.4.4 Daily income | C95: 1.4.4 | D95: Daily income is deposited in the bank every day. | F95: 1
B96: 1.4.5 Financial review and audit | C96: 1.4.5.1 | D96: Budget absorption rate of last fiscal year is as per national target | F96: 1
C97: 1.4.5.2 | D97: Internal audit, financial and physical progress review is done at least once each trimester (once in every 4 months). | F97: 1
C98: 1.4.5.3 | D98: Final audit/ external audited accounts are available for last year. | F98: 1
B99: 1.4.6 Electronic database | C99: 1.4.6.1 | D99: The hospital uses central electronic billing system | F99: 1
C100: 1.4.6.2 | D100: The hospital uses TABUCS/ LMBIS for accounting including local income and expenses by HMC. | F100: 1
B101: 1.4.7 Hospital prepares financial reports | C101: 1.4.7.1 | D101: The hospital prepares and keeps monthly financial report. | F101: 1
C102: 1.4.7.2 | D102: Trimester financial report is produced (every 4 months) and financial status tracked and discussed in meetings | F102: 1
C103: 1.4.7.3 | D103: Annual financial report is submitted to HMC. | F103: 1
B104: 1.4.8 Clearing financial irregularities | C104: 1.4.8.1 | D104: Financial irregularities are responded within 35 days | F104: 1
C105: 1.4.8.2 | D105: Clearance of financial authorities is done as per national target | F105: 1
B106: 1.4.9 Inventory inspection | C106: 1.4.9 | D106: Inventory inspection is done once in a year and managed accordingly | F106: 1
A107: NSI | B107: Standard 1.4 | D107: Total Score | E107: =SUM($E$90:$E$106) -> 0 | F107: =SUM($F$90:$F$106) -> 17
A108: NSI | D108: Percentage = Total Score / 17 x 100 | E108: =$E$107/$F$107 -> 0.00%
A111: NSI | B111: Area | C111: Code | D111: Verification
A112: NSI | B112: Medical Records and Information Management | C112: 1.5
A113: NSI | B113: Components | C113: Std No. | D113: Standards | E113: Obtained Score | F113: Maximum Score
B114: 1.5.1 Managing medical records and use of electronic database | C114: 1.5.1.1 | D114: Client registration is digitalized using standard software | F114: 1
C115: 1.5.1.2 | D115: Referral in and out records are kept using the standard form (HMIS 1.4) and register. | F115: 1
C116: 1.5.1.3 | D116: Electronic health record system that generates the HMIS monthly report (HMIS 9.4) is in place | F116: 1
B117: 1.5.2 Infrastructure and supplies for information management | C117: 1.5.2.1 | D117: There is a functional Medical Record Section | F117: 1
C118: 1.5.2.2 | D118: All patients' records are kept in individual folders in racks or held digitally. | F118: 1
C119: 1.5.2.3 | D119: There is a set of functional computer and printer available for maintaining medical records. | F119: 1
B120: 1.5.3 Evidence generation and utilization | C120: 1.5.3.1 | D120: Hospital monthly reports (HMIS 9.4) of the last three months are shared to the national database | F120: 1
C121: 1.5.3.2 | D121: Hospital services utilization statistics are analyzed at least every month and shared with all the HODs and in-charge via email, paper and/or dashboard. (Check last three months status) | F121: 1
C122: 1.5.3.3 | D122: Statistics including OPD morbidity pattern data, IPD data, surveillance data are analyzed and discussed in staff meeting and CPD/CME (Check the status in the last meeting) | F122: 1
C123: 1.5.3.4 | D123: Key statistics of service utilization is displayed in respective Departments/ Wards | F123: 1
C124: 1.5.3.5 | D124: Medico-legal incidents and services are recorded | F124: 1
B125: 1.5.4 Focal person for information management | C125: 1.5.4.1 | D125: Medical recorder is trained on ICD and DHIS2 | F125: 1
C126: 1.5.4.2 | D126: An information officer is specified to communicate with patients/clients, their relatives, media and other stakeholders. | F126: 1
C127: 1.5.4.3 | D127: Contact details of information officer is displayed in hospital premises with photo and phone number. | F127: 1
A128: NSI | B128: Standard 1.5 | D128: Total Score | E128: =SUM($E$114:$E$127) -> 0 | F128: =SUM($F$114:$F$127) -> 14
A129: NSI | D129: Percentage = Total Score / 14 x 100 | E129: =$E$128/$F$128 -> 0.00%
A132: NSI | B132: Area | C132: Code | D132: Verification
A133: NSI | B133: Quality Management | C133: 1.6
A134: NSI | B134: Components | C134: Std No. | D134: Standards | E134: Obtained Score | F134: Maximum Score
B135: 1.6.1 Hospital Quality Health Service Delivery and Management Strengthening (QHSDMS) Committee | C135: 1.6.1.1 | D135: Hospital QI committee is formed according to Guideline. | F135: 1
C136: 1.6.1.2 | D136: Hospital QHSDMS committee meetings are held at least every 4 months. | F136: 1
B137: 1.6.2 Display of patients’ rights and responsibilities | C137: 1.6.2 | D137: The hospital has a statement of patient rights and responsibilities, which is posted in public places in the hospital. | F137: 1
B138: 1.6.3 Addressing issues in report of social audit | C138: 1.6.3 | D138: The findings of social audit like client exit interview are shared in whole staff meeting | F138: 1
B139: 1.6.4 Assessing hospital quality | C139: 1.6.4 | D139: The hospital has assessed the hospital quality using the MSS tool at least every 4 months | F139: 1
B140: 1.6.5 Planning to improving quality | C140: 1.6.5 | D140: The hospital has developed specific plans to improve quality based on the MSS assessment. | F140: 1
B141: 1.6.6 Hospital uses QI tools | C141: 1.6.6 | D141: Hospital uses QI tools for assessment of the major priority government programs (less than 50%=0, 50-70% =1, 70-85% = 2, 85-100% =3) | F141: 3
B142: 1.6.7Implementing QI plan | C142: 1.6.7.1 | D142: Hospital has implemented the specific activities based on the MSS plan. | F142: 1
C143: 1.6.7.2 | D143: Hospital has implemented specific activities based on gap analysis of QI tools | F143: 1
B144: 1.6.8 Clinical Audit | C144: 1.6.8.1 | D144: The hospital has functional MPDSR committee (in program district) | F144: 1
C145: 1.6.8.2 | D145: There are regular reviews, reporting and dissemination of morbidity and mortality (M&M) including
C146: 1.6.8.2.1 | D146: Investigations and complications of treatment including medication error | F146: 1
C147: 1.6.8.2.2 | D147: Hospital acquired infections (HAI) | F147: 1
C148: 1.6.8.3 | D148: Mortality audit of every death in the hospital is done and reported | F148: 1
C149: 1.6.8.4 | D149: Hospital implements Robson’s classification (hospitals with CEONC services) | F149: 1
C150: 1.6.8.5 | D150: Hospital implements baby friendly initiative | F150: 1
A151: NSI | B151: Standard 1.6 | D151: Total Score | E151: =SUM($E$135:$E$144,$E$146:$E$150) -> 0 | F151: =SUM($F$135:$F$144,$F$146:$F$150) -> 17
A152: NSI | D152: Percentage = Total Score/17 x 100 | E152: =$E$151/$F$151 -> 0.00%
B155: Section II: Clinical Service Management Standards
A156: NSI | B156: Area | C156: Code | D156: Verification
A157: NSI | B157: OPD Service [1] | C157: 2.1
A158: NSI | B158: Components | C158: Std No. | D158: Standards | E158: Obtained Score | F158: Maximum Score
B159: 2.1.1 Time for patients | C159: 2.1.1.1 | D159: OPD is open from 10 AM to 3 PM (See Checklist 2.1 At the end of this standard for scoring). | E159: ='Checklist 2.1'!$W$4 -> 0 | F159: 3
C160: 2.1.1.2 | D160: Tickets for routine OPD are available till 2 pm | F160: 1
C161: 2.1.1.3 | D161: EHS services from 3PM onwards and tickets available from 2PM onwards | F161: 1
B162: 2.1.2 Adequate Staffing | C162: 2.1.2.1 | D162: There should be one administrator to manage all OPDs and procedure room | F162: 1
C163: 2.1.2.2 | D163: Doctor: OPD Patients- 1:35-50 per day for quality of care (*for dental services this ratio is 1:20) | F163: 1
C164: 2.1.1.2.3 | D164: One screening counter with 1 paramedics for every four OPDs and there should be one nurse in OBGYN OPD | F164: 1
B165: 2.1.3 Maintaining patient privacy | C165: 2.1.3 | D165: Patient privacy maintained with separate rooms, curtains hung, maintaining queuing of patients with paging system in OPD (See Checklist 2.1 At the end of this standard for scoring). | E165: ='Checklist 2.1'!$W$5 -> 0 | F165: 3
B166: 2.1.4 Patient counseling | C166: 2.1.4.1 | D166: Counseling is provided to patients about the type of treatment being given and its consequences (See Checklist 2.1 At the end of this standard for scoring). | E166: ='Checklist 2.1'!$W$6 -> 0 | F166: 3
C167: 2.1.4.2 | D167: Appropriate IEC materials (posters, leaflets etc.) as an IEC corner available in the OPD waiting area. | F167: 1
B168: 2.1.5 Physical facilities | C168: 2.1.5.1 | D168: Adequate rooms and space for the practitioners and patients are available (See Checklist 2.1 At the end of this standard for scoring). | E168: ='Checklist 2.1'!$W$7 -> 0 | F168: 3
C169: 2.1.5.2 | D169: Light and ventilation are adequately maintained. (See Checklist 2.1 At the end of this standard for scoring) | E169: ='Checklist 2.1'!$W$8 -> 0 | F169: 3
C170: 2.1.5.3 | D170: Required furniture, supplies and space are available
C171: 2.1.5.3.1 | D171: General Medicine OPD (See Annex 2.1a Furniture and supplies for OPD At the end of this standard) | E171: ='Annex 2.1a - 2.16b'!D25 -> 0 | F171: 3
C172: 2.1.5.3.2 | D172: Obstetrics and Gynecology OPD (See Annex 2.1a Furniture and supplies for OPD At the end of this standard) | E172: ='Annex 2.1a - 2.16b'!$D$26 -> 0 | F172: 3
C173: 2.1.5.3.3 | D173: Pediatrics OPD (See Annex 2.1a Furniture and supplies for OPD At the end of this standard) | E173: ='Annex 2.1a - 2.16b'!$D$27 -> 0 | F173: 3
C174: 2.1.5.3.4 | D174: Surgical OPD (See Annex 2.1a Furniture and supplies for OPD At the end of this standard) | E174: ='Annex 2.1a - 2.16b'!$D$28 -> 0 | F174: 3
C175: 2.1.5.3.5 | D175: Dental OPD (See Annex 2.1a Furniture and supplies for OPD At the end of this standard) | E175: ='Annex 2.1a - 2.16b'!$D$29 -> 0 | F175: 3
C176: 2.1.5.3.6 | D176: Orthopedics OPD (See Annex 2.1a Furniture and supplies for OPD At the end of this standard) | E176: ='Annex 2.1a - 2.16b'!$D$30 -> 0 | F176: 3
C177: 2.1.5.3.7 | D177: Psychiatry OPD (See Annex 2.1a Furniture and supplies for OPD At the end of this standard) | E177: ='Annex 2.1a - 2.16b'!$D$31 -> 0 | F177: 3
C178: 2.1.5.3.8 | D178: ENT OPD (See Annex 2.1a Furniture and supplies for OPD At the end of this standard) | E178: ='Annex 2.1a - 2.16b'!$D$32 -> 0 | F178: 3
C179: 2.1.5.3.9 | D179: Dermatology OPD (See Annex 2.1a Furniture and supplies for OPD At the end of this standard) | E179: ='Annex 2.1a - 2.16b'!$D$33 -> 0 | F179: 3
C180: 2.1.5.3.10 | D180: Opthalmology OPD (See Annex 2.1a Furniture and supplies for OPD At the end of this standard) | E180: ='Annex 2.1a - 2.16b'!$D$34 -> 0 | F180: 3
C181: 2.1.5.3.11 | D181: Cardiology OPD (See Annex 2.1a Furniture and supplies for OPD At the end of this standard) | E181: ='Annex 2.1a - 2.16b'!$D$35 -> 0 | F181: 3
C182: 2.1.5.3.12 | D182: Urology OPD (See Annex 2.1a Furniture and supplies for OPD At the end of this standard) | E182: ='Annex 2.1a - 2.16b'!$D$36 -> 0 | F182: 3
C183: 2.1.5.3.13 | D183: Neurosurgery OPD (See Annex 2.1a Furniture and supplies for OPD At the end of this standard) | E183: ='Annex 2.1a - 2.16b'!$D$37 -> 0 | F183: 3
C184: 2.1.5.3.14 | D184: Neurology OPD (See Annex 2.1a Furniture and supplies for OPD At the end of this standard) | E184: ='Annex 2.1a - 2.16b'!$D$38 -> 0 | F184: 3
C185: 2.1.5.3.15 | D185: Burn/Plastic OPD (See Annex 2.1a Furniture and supplies for OPD At the end of this standard) | E185: ='Annex 2.1a - 2.16b'!$D$39 -> 0 | F185: 3
C186: 2.1.5.3.16 | D186: Nephrology OPD (See Annex 2.1a Furniture and supplies for OPD At the end of this standard) | E186: ='Annex 2.1a - 2.16b'!$D$40 -> 0 | F186: 3
C187: 2.1.5.3.17 | D187: Gastrology OPD (See Annex 2.1a Furniture and supplies for OPD At the end of this standard) | E187: ='Annex 2.1a - 2.16b'!$D$41 -> 0 | F187: 3
C188: 2.1.5.4 | D188: Each OPD has designated space/room for procedure room/area with basic supplies of dressing, injection and procedures (specific to OPD like PV for Obstetrics /gynecology, PR for surgery) and hand washing facility (See Checklist 2.1 At the end of this standard for scoring) | E188: ='Checklist 2.1'!$W$9 -> 0 | F188: 3
B189: 2.1.6 Equipment, instrument and supplies | C189: 2.1.6 | D189: Equipment, instrument and supplies to carry out the OPD works are available and functioning
C190: 2.1.6.1 | D190: General OPD (See Annex 2.1b Basic Equipment and Instrument for OPD At the end of this standard) | E190: ='Annex 2.1a - 2.16b'!$D$100 -> 0 | F190: 3
C191: 2.1.6.2 | D191: Obstetrics and Gynecology OPD (See Annex 2.1b Basic Equipment and Instrument for OPD At the end of this standard) | E191: ='Annex 2.1a - 2.16b'!$D$101 -> 0 | F191: 3
C192: 2.1.6.3 | D192: Pediatrics OPD (See Annex 2.1b Basic Equipment and Instrument for OPD At the end of this standard) | E192: ='Annex 2.1a - 2.16b'!$D$102 -> 0 | F192: 3
C193: 2.1.6.4 | D193: Surgical OPD(See Annex 2.1b Basic Equipment and Instrument for OPD At the end of this standard) | E193: ='Annex 2.1a - 2.16b'!$D$103 -> 0 | F193: 3
C194: 2.1.6.5.1 | D194: Dental OPD (See Annex 2.1cBasic Equipment and Instrument for Dental OPD At the end of this standard) | E194: ='Annex 2.1a - 2.16b'!$D$214 -> 0 | F194: 3
C195: 2.1.6.5.2 | D195: Dental OPD has fully functioning electric dental chair with adequate light, water supply and drainage system with suction machine | F195: 1
C196: 2.1.6.5.3 | D196: Dental OPD has iopa x-ray machine (along with lead apron and thyroid collar | F196: 1
C197: 2.1.6.6 | D197: Orthopedics OPD (See Annex 2.1b Basic Equipment and Instrument for OPD At the end of this standard) | E197: ='Annex 2.1a - 2.16b'!$D$104 -> 0 | F197: 3
C198: 2.1.6.7 | D198: Psychiatry OPD (See Annex 2.1b Basic Equipment and Instrument for OPD At the end of this standard) | E198: ='Annex 2.1a - 2.16b'!$D$105 -> 0 | F198: 3
C199: 2.1.6.8 | D199: ENT OPD (See Annex 2.1b Basic Equipment and Instrument for OPD At the end of this standard) | E199: ='Annex 2.1a - 2.16b'!$D$106 -> 0 | F199: 3
C200: 2.1.6.9 | D200: Dermatology OPD (See Annex 2.1b Basic Equipment and Instrument for OPD At the end of this standard) | E200: ='Annex 2.1a - 2.16b'!$D$107 -> 0 | F200: 3
C201: 2.1.6.10 | D201: Opthalmology OPD (See Annex 2.1b Furniture and supplies for OPD At the end of this standard) | E201: ='Annex 2.1a - 2.16b'!$D$108 -> 0 | F201: 3
C202: 2.1.6.11 | D202: Cardiology OPD (See Annex 2.1b Basic Equipment and Instrument for OPD At the end of this standard) | E202: ='Annex 2.1a - 2.16b'!$D$109 -> 0 | F202: 3
C203: 2.1.6.12 | D203: Urology OPD (See Annex 2.1b Basic Equipment and Instrument for OPD At the end of this standard) | E203: ='Annex 2.1a - 2.16b'!$D$110 -> 0 | F203: 3
C204: 2.1.6.13 | D204: Neurosurgery OPD (See Annex 2.1b Basic Equipment and Instrument for OPD At the end of this standard) | E204: ='Annex 2.1a - 2.16b'!$D$111 -> 0 | F204: 3
C205: 2.1.6.14 | D205: Neurology OPD (See Annex 2.1b Basic Equipment and Instrument for OPD At the end of this standard) | E205: ='Annex 2.1a - 2.16b'!$D$112 -> 0 | F205: 3
C206: 2.1.6.15 | D206: Burn/Plastic OPD (See Annex 2.1b Basic Equipment and Instrument for OPD At the end of this standard) | E206: ='Annex 2.1a - 2.16b'!$D$113 -> 0 | F206: 3
C207: 2.1.6.16 | D207: Nephrology OPD (See Annex 2.1b Basic Equipment and Instrument for OPD At the end of this standard) | E207: ='Annex 2.1a - 2.16b'!$D$114 -> 0 | F207: 3
C208: 2.1.6.16 | D208: Gastrology OPD (See Annex 2.1b Basic Equipment and Instrument for OPD At the end of this standard) | E208: ='Annex 2.1a - 2.16b'!$D$115 -> 0 | F208: 3
B209: 2.1.7 Duty rosters | C209: 2.1.7 | D209: Duty rosters of all OPDs are developed regularly and available in appropriate location. | F209: 1
B210: 2.1.8 Facilities for patients | C210: 2.1.8.1 | D210: Comfortable waiting space with sitting arrangement is available for at least 100 persons in waiting lobby (for total OPDs) | F210: 1
C211: 2.1.8.2 | D211: Safe drinking water is available in the waiting lobby throughout the day. | F211: 1
... 1245 more rows

Sheet Checklist 2.1
B1: Checklist 2.1 OPD Services (1= General Medicine OPD, 2= Obstetrics/Gynecology OPD, 3= Pediatrics, 4=General Surgery, 5=Dental, 6=Orthopedics, 7=Psychiatry, 8=ENT, 9=Dermatology, 10=Opthalmology, 11=Cardiology, 12=Urology, 13=Neurosurgery, 14=Neurology, 15=Burn/Plastic, 16=Nephrology, 17=Gastrology)
B2: Code | C2: Standards | D2: Score | X2: Direction to use
D3: 1 | E3: 2 | F3: 3 | G3: 4 | H3: 5 | I3: 6 | J3: 7 | K3: 8 | L3: 9 | M3: 10 | N3: 11 | O3: 12 | P3: 13 | Q3: 14 | R3: 15 | S3: 16 | T3: 17 | U3: Total Score | V3: Percentage | W3: Scoring
B4: 2.1.1.1 | C4: OPD is open from 10 AM to 3 PM | U4: =SUM($D4:$T4) -> 0 | V4: =$U4/17 -> 0.00% | W4: =IF($V4<=0.4999,0, IF($V4<=0.6999,1, IF($V4<=0.8499,2,3))) -> 0 | X4: Go to standard 2.1.1.2
B5: 2.1.3 | C5: Appropriate techniques have been used to ensure the patient privacy (separate rooms, curtains hung, maintaining queuing of patients) | U5: 0 | V5: 0.00% | W5: 0 | X5: Go to standard 2.1.4
B6: 2.1.4.1 | C6: Counseling is provided to patients about the type of treatment being given and its consequences | U6: 0 | V6: 0.00% | W6: 0 | X6: Go to standard 2.1.4.2
B7: 2.1.5.1 | C7: Adequate rooms and space for the practitioners and patients are available | U7: 0 | V7: 0.00% | W7: 0 | X7: Go to standard 2.1.5.2
B8: 2.1.5.2 | C8: Light and ventilation are adequately maintained | U8: 0 | V8: 0.00% | W8: 0 | X8: Go to standard 2.1.5.4
B9: 2.1.5.4 | C9: Each OPD has designated space/room for procedure room/area with basic supplies of dressing, injection and procedures and hand washing facility | U9: 0 | V9: 0.00% | W9: 0 | X9: Go to Standard 2.1.6
B10: 2.1.9 | C10: OPD register available in every OPD and ICD 11 classification for diagnosis recorded (electronic health recording system) | U10: 0 | V10: 0.00% | W10: 0 | X10: Go to Standard 2.1.10.1
B11: 2.1.10.1 | C11: Masks and gloves are available and used | U11: 0 | V11: 0.00% | W11: 0 | X11: Go to Standard 2.1.10.2
B12: 2.1.10.2 | C12: There are well labeled colored bins for waste segregation and disposal as per HCWM guideline 2014 (MoHP) | U12: 0 | V12: 0.00% | W12: 0 | X12: Go to Standard 2.1.10.3
B13: 2.1.10.3 | C13: Hand washing facility with running water and soap or hand sanitizer is available for practitioners | U13: 0 | V13: 0.00% | W13: 0 | X13: Go to Standard 2.1.10.4
B14: 2.1.10.4 | C14: Needle cutter is used | U14: 0 | V14: 0.00% | W14: 0 | X14: Go to Standard 2.1.10.5
B15: 2.1.10.5 | C15: Chlorine solution is available and utilized for decontamination | U15: 0 | V15: 0.00% | W15: 0 | X15: Score Standard 2.1
C16: Total percentage = Total obtained score / No. of OPD x 100; Each row gets a score of 1 in each row if is available otherwise 0
C18: Scoring Chart
C19: Total Percentage | E19: Score
C20: 0% - 50% | E20: 0
C21: 50% - 70% | E21: 1
C22: 70% - 85% | E22: 2
C23: 85% - 100% | E23: 3
C25: Plot score based on scoring chart and to the space of obtained marks of respective standards

Sheet Checlist 2.6
B1: Checklist 2.6 Inpatient Services(1= Medicine Ward 2= Surgery ward 3= Pediatrics Ward 4= Orthopedics ward 5=Psychiatry Ward 6= ENTward 7= PNC and Gynecology Ward, 8= Geriatrics Ward)
B2: Code | C2: ServiceStandards | D2: Score
D3: 1 | E3: 2 | F3: 3 | G3: 4 | H3: 5 | I3: 6 | J3: 7 | K3: 8 | L3: 9 | M3: Total | N3: Percentage | O3: Scoring | P3: Direction to Use
B4: 2.6.1.1 | C4: Separate space for nursing station is available in each ward | M4: =SUM($D4:$L4) -> 0 | N4: =$M4/9 -> 0.00% | O4: =IF($N4<=0.4999,0, IF($N4<=0.6999,1, IF($N4<=0.8499,2,3))) -> 0 | P4: Go toStandard2.6.1.2
B5: 2.6.1.2 | C5: Separate doctors meeting room is available in each ward | M5: =SUM($D5:$L5) -> 0 | N5: =$M5/9 -> 0.00% | O5: =IF($N5<=0.4999,0, IF($N5<=0.6999,1, IF($N5<=0.8499,2,3))) -> 0 | P5: Go toStandard2.6.1.3
B6: 2.6.1.3 | C6: Separate changing room available for male and female staffs | M6: 0 | N6: 0.00% | O6: 0 | P6: Go toStandard2.6.1.4
B7: 2.6.1.4 | C7: Separate store room is available | M7: 0 | N7: 0.00% | O7: 0 | P7: Go toStandard2.6.2
B8: 2.6.4 | C8: There is a set of at least one table and two chairs in the nursing station and shelves for storage of charts and inpatient forms and formats | M8: 0 | N8: 0.00% | O8: 0 | P8: Go toStandard2.6.5
B9: 2.6.5 | C9: Adequate numbers of nursing staff are available in ward per shift (nurse patient ratio 1:6 in general ward,1:4 in pediatric ward, 1:2 in high dependency or intermediate ward or postoperative or burn/plastic ward)and at least one trained office assistant/ward attendant pershift in each ward | M9: 0 | N9: 0.00% | O9: 0 | P9: Go toStandard2.6.6
B10: 2.6.6 | C10: Duty roster of doctors, nurses, paramedics and support staffs kept visibly in nursing station | M10: 0 | N10: 0.00% | O10: 0 | P10: Go toStandard2.6.7
B11: 2.6.7 | C11: Telephone facility is available with list of important contact numbers and hospital codes visibly kept | M11: 0 | N11: 0.00% | O11: 0 | P11: Go toStandard2.6.8
B12: 2.6.8.1 | C12: All staffs inwards are trained for BLCS and oriented about emergency code001 or blue code | M12: 0 | N12: 0.00% | O12: 0 | P12: Go toStandard2.6.8.2
B13: 2.6.8.3 | C13: At least onedefibrillatorin immediate accessible area | M13: 0 | N13: 0.00% | O13: 0 | P13: Go toStandard2.6.9
B14: 2.6.10.1 | C14: Separate area designated for admission of male and femaleinpatients in ward | M14: 0 | N14: 0.00% | O14: 0 | P14: Go toStandard2.6.10.2
B15: 2.6.10.2 | C15: There are adequate separate toilets for male and female patients in each ward (1 for 6 female bed and 1 for 8 male beds) with wash basins/sinks for the patients.* | M15: 0 | N15: 0.00% | O15: 0 | P15: Go toStandard2.6.10.3
B16: 2.6.10.6 | C16: Safe drinking water is available24 hours for inpatients | M16: 0 | N16: 0.00% | O16: 0 | P16: Go toStandard2.6.10.4
B17: 2.6.10.7 | C17: Hours/ Time allocated for visitors to meet the inpatients and controlled traffic to prevent cross infection | M17: 0 | N17: 0.00% | O17: 0 | P17: Go toStandard2.6.10.6
B18: 2.6.10.8 | C18: Separate space is available for patients’ visitors (KuruwaGhar). | M18: 0 | N18: 0.00% | O18: 0 | P18: Go toStandard2.6.11
B19: 2.6.11.1 | C19: Basic information regarding admitted patients is displayed in a separate board | M19: 0 | N19: 0.00% | O19: 0 | P19: Go toStandard2.6.11.2
B20: 2.6.11.2 | C20: Separate space with privacy dedicated for regular counseling is done for patient and patient party on conditionand disease of patient. (See Checklist 2.6). | M20: 0 | N20: 0.00% | O20: 0 | P20: Go toStandard2.6.12
B21: 2.6.12 | C21: Appropriate IEC/ BCC materials (posters, leaflets etc.) are available in the inpatient ward with focuson infection prevention | M21: 0 | N21: 0.00% | O21: 0 | P21: Go toStandard2.6.13
B22: 2.6.13 | C22: Admissionand discharge registers are available and are being filledcompletely (HMIS8.1 and 8.2) | M22: 0 | N22: 0.00% | O22: 0 | P22: Go toStandard2.6.14
B23: 2.6.14.1 | C23: PPE areavailable and used whenever required | M23: 0 | N23: 0.00% | O23: 0 | P23: Go toStandard2.6.14.2
B24: 2.6.14.2 | C24: Each ward hashand sanitizer in visible place for health workers to use before and after touching patients | M24: 0 | N24: 0.00% | O24: 0 | P24: Go toStandard2.6.14.3
B25: 2.6.14.3 | C25: There are well labelled color-coded bins for wastesegregation and disposal as per HCWM guideline2014 (MoHP) | M25: 0 | N25: 0.00% | O25: 0 | P25: Go toStandard2.6.14.4
B26: 2.6.14.4 | C26: Hand-washing facility with running water and liquid soap is available and being practiced | M26: 0 | N26: 0.00% | O26: 0 | P26: Go toStandard2.6.14.5
B27: 2.6.14.5 | C27: Needle cutter is used | M27: 0 | N27: 0.00% | O27: 0 | P27: Go toStandard2.6.14.6
B28: 2.6.14.6 | C28: Chlorine solution is availableand utilized for decontamination | M28: 0 | N28: 0.00% | O28: 0 | P28: Go toStandard2.6.14.7
B29: 2.6.14.7 | C29: Separateisolation room for any communicable disease patients | M29: 0 | N29: 0.00% | O29: 0 | P29: ScoreStandard2.6
B31: Each row gets a score of 1 if available otherwise 0.Total Percentage = Total Score/ No of wards (8) x100Plot the scoring based on the scoring chart and fill in the respective standards in tool and
C33: Scoring Chart
C34: Total Percentage | D34: Score
C35: 0% - 50% | D35: 0
C36: 50% - 70% | D36: 1
C37: 70% - 85% | D37: 2
C38: 85% - 100% | D38: 3
B40: * For geriatrics ward, commode in toilet and railing on wall in both toilet and bathroom must be kept.

Sheet Annex 1.3a
B1: Annex 1.3 a : | C1: Functional Organogram (Standard 1.3.3.1)
A2: Functional Organogram for Primary Hospitals | E2: Obtained Score | F2: Maximum Score
A3: SN | B3: For Governance and Management
A4: 1 | B4: Medical Superintendent | D4: 1 | F4: 1
A5: 2 | B5: Hospital Management officer | D5: 1 | F5: 1
A6: 3 | B6: Information Management officer | D6: 1 | F6: 1
A7: 4 | B7: Information Technology Officer | D7: 1 | F7: 1
A8: 5 | B8: Accountant for hospital | D8: 2 | F8: 1
A9: 6 | B9: Medical recorder | D9: 3 | F9: 1
A10: 7 | B10: Health Insurance Team | D10: As per health insurance board | F10: 1
B11: For Clinical Services
A12: 8 | B12: Doctor : OPD Patients | C12: 1:35-50 (1:20) | F12: 1
A13: 9 | B13: Screening counter | C13: 1 paramedics: 4 OPDs and for psychiatry OPD, psychological counselor at least 2, at least one nurse in gynae/obs OPD | F13: 1
A14: 10 | B14: Special clinics | C14: 2 mid-level health workers: 1 Special Clinic* *For safe abortion services, at least one trained and certified medical officer/ MDGP/ ObGyn for first trimester and second trimester safe abortion services | F14: 1
A15: 11 | B15: ER beds: Health Workers | C15: 5 ER Beds: Doctor (1): Nurse (1): Paramedics (1): Office Assistant (1) There should be 1:1 nurse patient ratio in red area, 1:3 in yellow area and 1:6 in green area. | F15: 1
A16: 12 | B16: Pharmacist | C16: Pharmacy department is lead by at least one clinical pharmacist. Pharmacy has at least 3 pharmacist, 6 assistant pharmacist and 2 office assistants | F16: 1
A17: 13 | B17: Nursing and support staff for inpatient services per shift | C17: Nurse patient ratio 1:6 in general ward, 1:4 in pediatric ward, 1:2 in high dependency or intermediate ward or post-operative or burn/plastic ward) and at least one trained office assistant/ward attendant per shift in each ward | F17: 1
A18: 14 | B18: Nursing staff in labor and maternity per shift | C18: Nurse / SBA Trained/ Midwife and mother ratio 1:2 in pre-labor; 2:1 per delivery table and 1:6 in post-natal ward with at least one ASBA trained medical officer on duty and one office assistant are available in each shift | F18: 1
A19: 15 | B19: Nursing staff in haemodialysis per shift | C19: One haemodialysis trained nurse per two Haemodialysis machine | F19: 1
A20: 16 | B20: Intensive care service team | C20: One coordinator each for ICU, NICU, PICU with at least MD Anesthesiology , MD Pediatrics respectively with at least one admitting consultant on duty each for ICU, NICU, PICU One trained medical officer for each five bed Nurse-in-charge one each for ICU, NICU.PICU with nurse patient ratio: 1:1 for ventilated and multi organ failure, 2:3 for ventilated or multi-organ failure and 1:2 for other IP trained office assistant 1 for every five bed and on call biomedical engineer in each shift | F20: 1
A21: 17 | B21: Nursing supervisor/ administrator | C21: At least three nursing supervisor/administrator (one for IPD, OPD and emergency, one for maternity services, one for intensive care service and Operation Theatre) | F21: 1
A22: 18 | B22: Surgery team per surgery | C22: For one surgery, at least a team is composed of: MS with one trained medical officer, two OT trained nurse (one scrub and one circulating), one Anesthesiologist, one anesthesia assistant and one office assistant ( for cleaning and helping) For overall management of operation theatre, there is one OT nurse (with minimum bachelors degree) assigned as OT in-charge At least two nurses in pre-anesthesia area for receiving and transferring of the patient At least two ICU trained nurses for post anesthesia care for receiving patient after OT | F22: 1
A23: 19 | B23: Laboratory | C23: Laboratory team is lead by pathologist (at least) 3 (one for histocytopathology and hematology, 1 for biochemistry and 1 for microbiology) with at least 12 lab staffs ( 3 medical technologists, 3 technicians, 2 assistants and 2 helpers are available during routine working hours and on call biomedical engineer. | F23: 1
A24: 20 | B24: X-ray | C24: Adequate numbers of trained healthcare workers are available in x-ray (at least 2 staffs to cover shifts including ER) | F24: 1
A25: 21 | B25: USG | C25: USG trained medical practitioner and mid-level health worker in each USG room | F25: 1
A26: 22 | B26: CT Scan | C26: At least one CT scan of 128 slice with radiologist and radiographer/technologist | F26: 1
A27: 23 | B27: MRI | C27: At least one MRI of 1.5 Tesla with radiologist and radiographer/technologist | F27: 1
A28: 24 | B28: Echocardiogram | C28: MD internal medicine with echo training or Cardiologist is available for Echo service with at least one mid-level health worker assigned in Echo is available for Echo service with at least one mid-level health worker assigned in Echo | F28: 1
A29: 25 | B29: Treadmill test | C29: At least one trained medical officer / cardiologist and one mid-level health worker is allocated for TMT service | F29: 1
A30: 26 | B30: Endoscopy | C30: Physician/ surgeons having endoscopic training or Gastroenterologist or hepatologist or gastrointestinal surgeons with at least 2 Trained endoscopic nurse/paramedic designated for endoscopy room and one trained record keeping staff nurse/paramedics | F30: 1
A31: 27 | B31: Medico legal and forensics services | C31: Team led by MD Forensic Medicine with at least one trained medical officer for mortuary service and medico-legal services | F31: 1
A32: 28 | B32: OCMC | C32: 2 Staff nurse working in the hospital and 1 trained psycho social counselor) | F32: 1
A33: 29 | B33: Physiotherapy | C33: At least 3 physiotherapist trained in Masters in Physiotherapy (MPT) one each for orthopedics, cardiology and neurology, 6 Bachelors’ in Physiotherapy (BPT) and 3 Certificate in physiotherapy (CPT) or Diploma in physiotherapy (DPT) and 3 office assistants | F33: 1
A34: 30 | B34: Inpatient and outpatient dietetics and nutritional rehabilitation | C34: one Senior Dietitian (Masters qualification in Nutrition & Dietetics including hospital internship or Bachelors in Nutrition & Dietetics with 1 years hospital experience) plus one dietetic assistant per hundred general beds, plus one office assistant Additionally, 1 senior dietitian per 25 beds for all specialized services, including ICU, NICU, PICU, nephrology/hemodialysis | F34: 1
A35: 31 | B35: Stabilization center | C35: Inpatient bed: Nurses trained in stabilization of severely undernourished children with complications – 2:1 | F35: 1
A36: 32 | B36: Cath Lab | C36: For one cardiac intervention, at least a team is composed of: MD Internal Medicine trained in cardiac intervention or cardiologist with one trained medical officer, two trained nursing/paramedics, and one trained office assistant | F36: 1
B37: For Hospital Support Services
A38: 33 | B38: CSSD | C38: Separate staffs assigned for CSSD under leadership of trained nursing staff | F38: 1
A39: 34 | B39: Laundry and housekeeping | C39: There is a special schedule for collection and distribution of linens with visible duty roster for staffs laundry and housekeeping | F39: 1
A40: 35 | B40: BMET | C40: Human resource trained in biomedical engineering is designated for repair and maintenance | F40: 1
A41: 36 | B41: Security | C41: The hospital has trained security personnel round the clock. | F41: 1
A42: 37 | B42: SSU | C42: Facilitators at least 2 to 10 facilitators led by unit chief | F42: 1
A43: Total Score | E43: =SUM($E$4:$E$10,$E$12:$E$36,$E$38:$E$42) -> 0 | F43: =SUM($F$4:$F$10,$F$12:$F$36,$F$38:$F$42) -> 37
A44: Total Percentage = Total Score/ 37 x 100 | E44: =$E$43/$F$43 -> 0.00%
B46: Each row gets a score of 1 in each row if is available otherwise 0
D47: Scoring chart
D48: Total percentage | E48: Score
D49: 0% - 50% | E49: 0
D50: 50% - 70% | E50: 1
D51: 70% - 85% | E51: 2
D52: 85% - 100% | E52: 3
D53: Score for Standard 1.3.3.1 | E53: =IF($E$44<=0.4999,0, IF($E$44<=0.6999,1, IF($E$44<=0.8499,2,3))) -> 0

Sheet Annex 2.1a - 2.16b
A1: Bold | B1: Annex 2.1a Furniture and Supplies for OPD
A2: Bold | B2: (1= General Medicine OPD, 2= Obstetrics/Gynecology OPD, 3= Pediatrics, 4=General Surgery, 5=Dental, 6=Orthopedics, 7=Psychiatry, 8=ENT, 9=Dermatology, 10=Opthalmology, 11=Cardiology, 12=Urology, 13=Neurosurgery, 14=Neurology, 15=Burn/Plastic, 16=Nephrology, 17=Gastrology)
A3: NSI | B3: SN | C3: General Items | D3: Required No. | E3: Score
A4: NSI | E4: 1 | F4: 2 | G4: 3 | H4: 4 | I4: 5 | J4: 6 | K4: 7 | L4: 8 | M4: 9 | N4: 10 | O4: 11 | P4: 12 | Q4: 13 | R4: 14 | S4: 15 | T4: 16 | U4: 17
B5: 1 | C5: Working desk | D5: 1 for each practitioner
B6: 2 | C6: Working Chairs | D6: 1 for each practitioner
B7: 3 | C7: Patient chairs | D7: 2 for each working desk
B8: 4 | C8: Examination table | D8: 1 in each OPD room
B9: 5 | C9: Foot Steps | D9: 1 in each OPD room
B10: 6 | C10: Curtain separator forexamination beds | D10: In each examination bed
B11: 7 | C11: Shelves for papers | D11: As per need
B12: 8 | C12: Weighing scale | D12: Adult and Child
A13: NSI | B13: Total Score | E13: =SUM(E$5:E$12) -> 0 | F13: =SUM(F$5:F$12) -> 0 | G13: 0 | H13: 0 | I13: 0 | J13: 0 | K13: 0 | L13: 0 | M13: 0 | N13: 0 | O13: 0 | P13: 0 | Q13: 0 | R13: 0 | S13: 0 | T13: 0 | U13: 0
A14: NSI | B14: Total Percentage = Total Score/8 X 100 | E14: =E$13/8 -> 0.00% | F14: =F$13/8 -> 0.00% | G14: 0.00% | H14: 0.00% | I14: 0.00% | J14: 0.00% | K14: 0.00% | L14: 0.00% | M14: 0.00% | N14: 0.00% | O14: 0.00% | P14: 0.00% | Q14: 0.00% | R14: 0.00% | S14: 0.00% | T14: 0.00% | U14: 0.00%
B15: *For psychiatry OPD, furniture should be fixed to prevent harm from violent patients
C18: Each row gets a score of 1 in each row if is available otherwise 0
C19: Scoring chart
C20: Total percentage | D20: Score
C21: 0% - 50% | D21: 0
A22: y | C22: 50% - 70% | D22: 1
A23: b | C23: 70% - 85% | D23: 2
A24: g | C24: 85% - 100% | D24: 3
C25: Score for Standard 2.1.5.3.1 | D25: =IF($E$14<=0.4999,0, IF($E$14<=0.6999,1, IF($E$14<=0.8499,2,3))) -> 0
C26: Score for Standard 2.1.5.3.2 | D26: =IF($F$14<=0.4999,0, IF($F$14<=0.6999,1, IF($F$14<=0.8499,2,3))) -> 0
C27: Score for Standard 2.1.5.3.3 | D27: =IF($G$14<=0.4999,0, IF($G$14<=0.6999,1, IF($G$14<=0.8499,2,3))) -> 0
C28: Score for Standard 2.1.5.3.4 | D28: =IF($H$14<=0.4999,0, IF($H$14<=0.6999,1, IF($H$14<=0.8499,2,3))) -> 0
C29: Score for Standard 2.1.5.3.5 | D29: =IF($I$14<=0.4999,0, IF($I$14<=0.6999,1, IF($I$14<=0.8499,2,3))) -> 0
C30: Score for Standard 2.1.5.3.6 | D30: =IF($J$14<=0.4999,0, IF($J$14<=0.6999,1, IF($J$14<=0.8499,2,3))) -> 0
C31: Score for Standard 2.1.5.3.7 | D31: =IF($K$14<=0.4999,0, IF($K$14<=0.6999,1, IF($K$14<=0.8499,2,3))) -> 0
C32: Score for Standard 2.1.5.3.8 | D32: =IF($L$14<=0.4999,0, IF($L$14<=0.6999,1, IF($L$14<=0.8499,2,3))) -> 0
C33: Score for Standard 2.1.5.3.9 | D33: =IF($M$14<=0.4999,0, IF($M$14<=0.6999,1, IF($M$14<=0.8499,2,3))) -> 0
C34: Score for Standard 2.1.5.3.10 | D34: =IF($N$14<=0.4999,0, IF($N$14<=0.6999,1, IF($N$14<=0.8499,2,3))) -> 0
C35: Score for Standard 2.1.5.3.11 | D35: =IF($O$14<=0.4999,0, IF($O$14<=0.6999,1, IF($O$14<=0.8499,2,3))) -> 0
C36: Score for Standard 2.1.5.3.12 | D36: =IF($P$14<=0.4999,0, IF($P$14<=0.6999,1, IF($P$14<=0.8499,2,3))) -> 0
C37: Score for Standard 2.1.5.3.13 | D37: =IF($Q$14<=0.4999,0, IF($Q$14<=0.6999,1, IF($Q$14<=0.8499,2,3))) -> 0
C38: Score for Standard 2.1.5.3.14 | D38: =IF($R$14<=0.4999,0, IF($R$14<=0.6999,1, IF($R$14<=0.8499,2,3))) -> 0
C39: Score for Standard 2.1.5.3.15 | D39: =IF($S$14<=0.4999,0, IF($S$14<=0.6999,1, IF($S$14<=0.8499,2,3))) -> 0
C40: Score for Standard 2.1.5.3.16 | D40: =IF($T$14<=0.4999,0, IF($T$14<=0.6999,1, IF($T$14<=0.8499,2,3))) -> 0
C41: Score for Standard 2.1.5.3.17 | D41: =IF($U$14<=0.4999,0, IF($U$14<=0.6999,1, IF($U$14<=0.8499,2,3))) -> 0
A44: Bold | B44: Annex 2.1b Basic Equipment and Instruments for OPD
A45: Bold | B45: (1= General Medicine OPD, 2= Obstetrics/Gynecology OPD, 3= Pediatrics, 4=General Surgery, 5=Orthopedics, 6=Psychiatry, 7=ENT, 8=Dermatology, 9=Opthalmology, 10=Cardiology, 11=Urology, 12=Neurosurgery, 13=Neurology, 14=Burn/Plastic, 15=Nephrology, 16=Gastrology)
A46: NSI | B46: SN | C46: Basic equipment and instruments | D46: Required No. | E46: Score
A47: NSI | E47: 1 | F47: 2 | G47: 3 | H47: 4 | I47: 5 | J47: 6 | K47: 7 | L47: 8 | M47: 9 | N47: 10 | O47: 11 | P47: 12 | Q47: 13 | R47: 14 | S47: 15 | T47: 16
B48: 1 | C48: Stethoscope* | D48: 1 for each practitioner
B49: 2 | C49: Sphygmomanometer* (non-mercury) (*Pediatric size in pediatric OPD) | D49: 1 for each practitioner
B50: 3 | C50: Thermometer (digital) | D50: 2 in each table
B51: 4 | C51: Jerk hammer | D51: 1 for each practitioner
B52: 5 | C52: Flash light | D52: 1 for each practitioner
B53: 6 | C53: Disposable wooden tongue depressor | D53: As per need
B54: 7 | C54: Hand sanitizer | D54: 1 in each table
B55: 8 | C55: Examination Gloves | D55: As per need
B56: 9 | C56: X-Ray View Box | D56: 1 in each OPD
B57: 10 | C57: Measuring tape | D57: 1 in each table
B58: 11 | C58: Tuning fork | D58: 1 in each table
B59: 12 | C59: Proctoscope | D59: 1
B60: 13 | C60: Otoscope | D60: 1
B61: 14 | C61: Duck’s Speculum | D61: 1
B62: 15 | C62: Aeyer’s Spatula/ Slides (PapSmear/ VIA materials) | D62: 1
B63: 16 | C63: Betadine/Swab | D63: 1
B64: 17 | C64: Fetoscope | D64: 1
B65: 18 | C65: Pediatric Paracetamol | D65: At least one syrup
B66: 19 | C66: Oral Rehydration Solution | D66: At least one sachet
B67: 20 | C67: Goniometer | D67: 1 in each table
B68: 21 | C68: Plaster cutter | D68: 1
B69: 22 | C69: Diagnostic tools for psychiatry | D69: 1 set
B70: 23 | C70: Nasal speculum of different size | D70: 1 set
B71: 24 | C71: Bull’s eye lamp | D71: 1
B72: 25 | C72: Head mirror | D72: 1 for each practitioner
B73: 26 | C73: ENT Forceps | D73: 1 set
B74: 27 | C74: Nasopharyngolaryngoscpe with monitor | D74: 1
B75: 28 | C75: Indirect Laryngoscopy mirrors | D75: 1
B76: 29 | C76: Posterior rhinoscopy mirrors | D76: 1
B77: 30 | C77: Magnifying glass | D77: 1
B78: 31 | C78: Table lamp with good light source | D78: 1
B79: 32 | C79: Glass slides | D79: 1
B80: 33 | C80: Wood's Lamp | D80: 1
B81: 34 | C81: Cystoscope | D81: 1
B82: 35 | C82: Ophthalmoscope | D82: 1
B83: 36 | C83: EEG (24 channel) | D83: 1
B84: 37 | C84: EMG machine also supporting MNCV, SMC, VEP | D84: 1
B85: 38 | C85: Dressing trolley with drum with gauze pad | D85: 1 set
B86: 39 | C86: Cystoscope in Urology OPD | D86: 1
A87: NSI | B87: Total score | E87: =SUM($E$48:$E$60) -> 0 | F87: =SUM($F$48:$F$64) -> 0 | G87: =SUM(G48:G58,G65:G66) -> 0 | H87: =SUM(H48:H60,H85) -> 0 | I87: =SUM(I48:I64,I67:I69) -> 0 | J87: =SUM(J48:J58,J69) -> 0 | K87: =SUM(K48:K58,K70:K76) -> 0 | L87: =SUM(L48:L85) -> 0 | M87: =SUM(M48:M58,M61,M77:M80) -> 0 | N87: =SUM(N48:N58,N81) -> 0 | O87: =SUM(O48:O58) -> 0 | P87: =SUM(P48:P58,P82:P84) -> 0 | Q87: =SUM(Q48:Q58,Q85) -> 0 | R87: =SUM(R48:R58) -> 0 | S87: =SUM(S48:S59) -> 0 | T87: =SUM(T48:T59) -> 0
A88: NSI | B88: Maximum Score | E88: 13 | F88: 17 | G88: 13 | H88: 15 | I88: 15 | J88: 12 | K88: 18 | L88: 11 | M88: 16 | N88: 12 | O88: 12 | P88: 14 | Q88: 12 | R88: 11 | S88: 12 | T88: 12
A89: NSI | B89: Total percentage= Total Score/ Maximum Score x 100 | E89: =E87/E88 -> 0.00% | F89: =F87/F88 -> 0.00% | G89: 0.00% | H89: 0.00% | I89: 0.00% | J89: 0.00% | K89: 0.00% | L89: 0.00% | M89: 0.00% | N89: 0.00% | O89: 0.00% | P89: 0.00% | Q89: 0.00% | R89: 0.00% | S89: 0.00% | T89: 0.00%
C91: * For pediatrics OPD, pediatric size
C92: (1= General Medicine OPD, 2= Obstetrics/Gynecology OPD, 3= Pediatrics, 4=General Surgery, 5=Orthopedics, 6=Psychiatry, 7=ENT, 8=Dermatology, 9=Opthalmology, 10=Cardiology, 11=Urology, 12=Neurosurgery, 13=Neurology, 14=Burn/Plastic, 15=Nephrology, 16=Gastrology)
C93: Each row gets a score of 1 in ech row if is available otherwise 0
C94: Scoring chart
C95: Total percentage | D95: Score
C96: 0% - 50% | D96: 0
A97: Y | C97: 50% - 70% | D97: 1
A98: B | C98: 70% - 85% | D98: 2
A99: G | C99: 85% - 100% | D99: 3
C100: Score for Standard 2.1.6.1 | D100: =IF($E$89<=0.4999,0, IF($E$89<=0.6999,1, IF($E$89<=0.8499,2,3))) -> 0
C101: Score for Standard 2.1.6.2 | D101: =IF($F$89<=0.4999,0, IF($F$89<=0.6999,1, IF($F$89<=0.8499,2,3))) -> 0
C102: Score for Standard 2.1.6.3 | D102: =IF($G$89<=0.4999,0, IF($G$89<=0.6999,1, IF($G$89<=0.8499,2,3))) -> 0
C103: Score for Standard 2.1.6.4 | D103: =IF($H$89<=0.4999,0, IF($H$89<=0.6999,1, IF($H$89<=0.8499,2,3))) -> 0
C104: Score for Standard 2.1.6.6 | D104: =IF($I$89<=0.4999,0, IF($I$89<=0.6999,1, IF($I$89<=0.8499,2,3))) -> 0
C105: Score for Standard 2.1.6.7 | D105: =IF($J$89<=0.4999,0, IF($J$89<=0.6999,1, IF($J$89<=0.8499,2,3))) -> 0
C106: Score for Standard 2.1.6.8 | D106: =IF($K$89<=0.4999,0, IF($K$89<=0.6999,1, IF($K$89<=0.8499,2,3))) -> 0
C107: Score for Standard 2.1.6.9 | D107: =IF($L$89<=0.4999,0, IF($L$89<=0.6999,1, IF($L$89<=0.8499,2,3))) -> 0
C108: Score for Standard 2.1.6.10 | D108: =IF($M$89<=0.4999,0, IF($M$89<=0.6999,1, IF($M$89<=0.8499,2,3))) -> 0
C109: Score for Standard 2.1.6.11 | D109: =IF($N$89<=0.4999,0, IF($N$89<=0.6999,1, IF($N$89<=0.8499,2,3))) -> 0
C110: Score for Standard 2.1.6.12 | D110: =IF($O$89<=0.4999,0, IF($O$89<=0.6999,1, IF($O$89<=0.8499,2,3))) -> 0
C111: Score for Standard 2.1.6.13 | D111: =IF($P$89<=0.4999,0, IF($P$89<=0.6999,1, IF($P$89<=0.8499,2,3))) -> 0
C112: Score for Standard 2.1.6.14 | D112: =IF($Q$89<=0.4999,0, IF($Q$89<=0.6999,1, IF($Q$89<=0.8499,2,3))) -> 0
C113: Score for Standard 2.1.6.15 | D113: =IF($R$89<=0.4999,0, IF($R$89<=0.6999,1, IF($R$89<=0.8499,2,3))) -> 0
C114: Score for Standard 2.1.6.16 | D114: =IF($S$89<=0.4999,0, IF($S$89<=0.6999,1, IF($S$89<=0.8499,2,3))) -> 0
C115: Score for Standard 2.1.6.17 | D115: =IF($T$89<=0.4999,0, IF($T$89<=0.6999,1, IF($T$89<=0.8499,2,3))) -> 0
A118: Bold | B118: Annex 2.1c Basic Equipment and Instrument for Dental OPD
A120: NSI | B120: SN | C120: Instruments and Equipment for DentalOPD | D120: Required numbers | E120: Score
B121: Diagnostic
B122: 1 | C122: Mouth mirror | D122: 10
B123: 2 | C123: Explorer | D123: 10
B124: 3 | C124: St. Probe | D124: 5
B125: 4 | C125: Tweezers | D125: 10
B126: 5 | C126: Periodontal probe | D126: 2
B127: 6 | C127: Kidney tray small and large | D127: 5
B128: 7 | C128: Plastic tray | D128: 10
B129: Extraction forceps
B130: 8 | C130: Upper premolar | D130: 1
B131: 9 | C131: Upper molar (right) | D131: 2
B132: 10 | C132: Upper molar (left) | D132: 1
B133: 11 | C133: Upper third molar | D133: 1
B134: 12 | C134: Lower cowhorn forceps | D134: 3
B135: 13 | C135: Lower third molar | D135: 1
B136: 14 | C136: Lower root forceps | D136: 1
B137: Elevators
B138: 15 | C138: Compland elevators (small and large) | D138: 10
B139: 16 | C139: Cryers | D139: 1 set
B140: 17 | C140: Pointed elevator | D140: 2
B141: 18 | C141: Apexoelevator | D141: 2
B142: Surgical
B143: 19 | C143: Bp handle | D143: 2
B144: 20 | C144: Needle holder | D144: 3
B145: 21 | C145: Artery forceps | D145: 2
B146: 22 | C146: Toothed forceps | D146: 2
B147: 23 | C147: Scissors (suture cutting) | D147: 1
B148: 24 | C148: 21 no wire | D148: 2 packets
B149: 25 | C149: Wire cutter | D149: 1
B150: Restorative
B151: 26 | C151: Airotor handpiece | D151: 2
B152: Burs
B153: 27 | C153: Round burs (smalland large) | D153: 5
B154: 28 | C154: Straight bur | D154: 2
B155: 29 | C155: Inverted cone bur | D155: 2
B156: 30 | C156: Composite finishing bur | D156: 1
B157: 31 | C157: Cement spatula | D157: 1
B158: 32 | C158: Plastic spatula | D158: 1
B159: 33 | C159: Glass slab | D159: 1
B160: 34 | C160: Mixing paper pad | D160: 1
B161: 35 | C161: Cement carrier | D161: 5
B162: 36 | C162: Condenser (round) | D162: 5
B163: 37 | C163: Ball burnisher | D163: 2
B164: 38 | C164: Spoon excavators | D164: 5
B165: 39 | C165: Toffle wire matrix retainer | D165: 1
B166: 40 | C166: Matrix band (steel) | D166: 2 packets
B167: 41 | C167: Matrix band (plastic) | D167: 1 packets
B168: 42 | C168: Wedge | D168: 1 packets
B169: 43 | C169: Dycal tip | D169: 2
B170: Dental materials
B171: 44 | C171: Gic (restorative) | D171: 1 set
B172: 45 | C172: Miracle mix | D172: 1 set
B173: 46 | C173: Composite filling set
B174: 47 | C174: Etchant | D174: 1
B175: 48 | C175: Bonding agent | D175: 1
B176: 49 | C176: Composite = shades a1 a2a3b1b2 | D176: 1 each
B177: 50 | C177: Bonding agent applicator | D177: 1 packet
B178: 51 | C178: Dycal | D178: 1 set
B179: 52 | C179: Cavit(temporary restorative) | D179: 1
B180: 53 | C180: Zinc phosphate (restorative) | D180: 1 set
B181: 54 | C181: Vaseline | D181: 1
B182: Scaling
B183: 55 | C183: Suction tips | D183: 2 packets
B184: 56 | C184: Curette (universal curette) | D184: 3
B185: Pedo forceps
B186: 57 | C186: Upper anterior | D186: 2
B187: 58 | C187: Upper root | D187: 1
B188: 59 | C188: Upper molar | D188: 2
B189: 60 | C189: Lower anterior | D189: 2
B190: 61 | C190: Lower molar | D190: 2
B191: Additional instruments/supplies
B192: 62 | C192: Local anesthesia (2% lidocane withadrenaline) | D192: 1 box
B193: 63 | C193: Syringe 1ml 2ml 3ml | D193: 1 packeteach
B194: 64 | C194: Gauge | D194: 1 packet
B195: 65 | C195: Cotton roll | D195: 1 packet
B196: 66 | C196: Normal sline | D196: 1 bottle
B197: 67 | C197: Betadine | D197: 1 bottle
B198: 68 | C198: Micromotor (slow speed round bur) | D198: 1(2)
B199: 69 | C199: H2o2 | D199: 1 bottle
B200: 70 | C200: Dental floss | D200: 1 packet
B201: 71 | C201: Surgical gloves | D201: As per need
B202: 72 | C202: Loose gloves | D202: As per need
A203: NSI | B203: Total score | E203: =SUM(E122:E128,E130:E136,E138:E141,E143:E149,E151,E153:E169,E171:E181,E183:E184,E186:E190,E192:E202) -> 0
A204: NSI | B204: Percentage= Total score/ 72 x 100 | E204: =E203/72 -> 0.00%
B206: Each row gets a score of 1 in each row if is available otherwise 0
C208: Scoring Chart
C209: Total Percentage | D209: Score
C210: 0% - 50% | D210: 0
... 2404 more rows

Sheet Annex 3.1a - 3.7a
B1: Annex 3.1 a : | D1: CSSD Equipment and Supplies
B3: SN | C3: Items | G3: Required No. | I3: Score | J3: Max Score
B4: 1 | C4: Working Table | G4: 3 | J4: 1
B5: 2 | C5: Trolley for Transportation | G5: 2 | J5: 1
B6: 3 | C6: Steel Drums | G6: 10 | J6: 1
B7: 4 | C7: Storage Shelves | G7: 2 | J7: 1
B8: 5 | C8: Autoclave Machine (250 liter, pre-vacuum, with horizontal outlet) | G8: 2 | J8: 1
B9: 6 | C9: Double Wrappers | G9: As per need | J9: 1
B10: 7 | C10: Timer | G10: 2 | J10: 1
B11: 8 | C11: Thermal Indicator Tape | G11: As per need | J11: 1
B12: 9 | C12: Cap, Mask, Gown, Apron | G12: As per need | J12: 1
B13: 10 | C13: Gloves | G13: 1 box | J13: 1
B14: 11 | C14: Cotton Rolls | G14: As per need | J14: 1
B15: 12 | C15: Cotton Gauze | G15: As per need | J15: 1
B16: 13 | C16: Scissors | G16: 2 | J16: 1
B17: 14 | C17: Gauze cutter | G17: 2 | J17: 1
B18: 15 | C18: Buckets | G18: 5 | J18: 1
B19: 16 | C19: Scrub Brush | G19: As per need | J19: 1
B20: 17 | C20: Hamper bag (cloth sack for collection of wrappers) | G20: As per need | J20: 1
B21: Total Score | I21: =SUM($I$4:$I$20) -> 0 | J21: =SUM($J$4:$J$20) -> 17
B22: Total Percentage = Total Score/17 X 100 | I22: =$I$21/$J$21 -> 0.00%
B24: Each row gets a score of 1 in each row if is available otherwise 0 | G24: Scoring chart
G25: Total percentage | I25: Score
G26: 0% - 50% | I26: 0
G27: 50% - 70% | I27: 1
G28: 70% - 85% | I28: 2
G29: 85% - 100% | I29: 3
G30: Score for Standard 3.1.3 | I30: =IF($I$22<=0.4999,0, IF($I$22<=0.6999,1, IF($I$22<=0.8499,2,3))) -> 0
B33: Annex 3.2 a : | D33: Equipment and Supplies for Laundry
B35: SN | C35: List of equipment and supplies | G35: Required No. | I35: Score | J35: Max Score
B36: 1 | C36: Working table | G36: 1 | J36: 1
B37: 2 | C37: Ironing Table | G37: 1 | J37: 1
B38: 3 | C38: Storage Shelves | G38: 2 | J38: 1
B39: 4 | C39: Trolley for Transportation | G39: 2 | J39: 1
B40: 5 | C40: Washing Machine (at least 10 kg capacity with semi/full dryer) | G40: 2 | J40: 1
B41: 6 | C41: Iron Machine | G41: 1 | J41: 1
B42: 7 | C42: Buckets/ Basins | G42: 5 | J42: 1
B43: 8 | C43: Stirrer (wooden) | G43: 2 | J43: 1
B44: 9 | C44: Boots | G44: 2 pairs | J44: 1
B45: 10 | C45: Cap, Mask, Gowns | G45: As per need | J45: 1
B46: 11 | C46: Ropes (for drying) | G46: As per need | J46: 1
B47: 12 | C47: Scrub Brush | G47: As per need | J47: 1
B48: 13 | C48: House/ Utility Gloves | G48: As per need | J48: 1
B49: 14 | C49: Washing Powder | G49: As per need | J49: 1
B50: 15 | C50: Chlorine Liquid/ Powder | G50: As per need | J50: 1
B51: Total Obtained Score | I51: =SUM($I$36:$I$50) -> 0 | J51: =SUM($J$36:$J$50) -> 15
B52: Total Percentage = Total Obtained Score/15 X 100 | I52: =$I$51/$J$51 -> 0.00%
B54: Each row gets a score of 1 in each row if is available otherwise 0 | G54: Scoring chart
G55: Total percentage | I55: Score
G56: 0% - 50% | I56: 0
G57: 50% - 70% | I57: 1
G58: 70% - 85% | I58: 2
G59: 85% - 100% | I59: 3
G60: Score for Standard 3.2.3 | I60: =IF($I$52<=0.4999,0, IF($I$52<=0.6999,1, IF($I$52<=0.8499,2,3))) -> 0
B63: Annex 3.3 a : | D63: Housekeeping Basic Supplies
B65: SN | C65: General Items | G65: Required No. | I65: Score | J65: Max Score
B66: 1 | C66: Working Table and Chair | G66: 1 | J66: 1
B67: 2 | C67: Telephone | G67: 1 | J67: 1
B68: 3 | C68: Housekeeping Storage Room | G68: 1 | J68: 1
B69: 4 | C69: Shelves | G69: 2 | J69: 1
B70: 5 | C70: Cupboards | G70: 2 | J70: 1
B71: 6 | C71: Log Book for Records | G71: 1 | J71: 1
B72: 7 | C72: Vacuum Cleaner | G72: 1 | J72: 1
B73: 8 | C73: Sickle | G73: As per need | J73: 1
B74: 9 | C74: Spade | G74: As per need | J74: 1
B75: 10 | C75: Shovel | G75: As per need | J75: 1
B76: 11 | C76: Ropes | G76: As per need | J76: 1
B77: 12 | C77: Scrub Brush | G77: As per need | J77: 1
B78: 13 | C78: Broom | G78: As per need | J78: 1
B79: 14 | C79: Buckets | G79: As per need | J79: 1
B80: 15 | C80: Jars | G80: As per need | J80: 1
B81: 16 | C81: Sprinkle Pipe | G81: As per need | J81: 1
B82: 17 | C82: Soaps | G82: As per need | J82: 1
B83: 18 | C83: Washing Powder | G83: As per need | J83: 1
B84: 19 | C84: Additional Bed Covers for Replacement | G84: As per need | J84: 1
B85: 20 | C85: Additional Pillow | G85: As per need | J85: 1
B86: 21 | C86: Pillow cover | G86: As per need | J86: 1
B87: 22 | C87: Blankets | G87: As per need | J87: 1
B88: 23 | C88: Personal Protective Items | G88: As per need | J88: 1
B89: 24 | C89: Window screens (jaali) | G89: In all windows | J89: 1
B90: 25 | C90: Mosquito nets | G90: As per need | J90: 1
B91: 26 | C91: Flower Pots | G91: As per need | J91: 1
B92: Total Score | I92: =SUM($I$66:$I$91) -> 0 | J92: =SUM($J$66:$J$91) -> 26
B93: Total Percentage = Total Score/26 X 100 | I93: =$I$92/$J$92 -> 0.00%
B95: Each row gets a score of 1 in each row if is available otherwise 0 | G95: Scoring chart
G96: Total percentage | I96: Score
G97: 0% - 50% | I97: 0
G98: 50% - 70% | I98: 1
G99: 70% - 85% | I99: 2
G100: 85% - 100% | I100: 3
G101: Score for Standard 3.3.3 | I101: =IF($I$93<=0.4999,0, IF($I$93<=0.6999,1, IF($I$93<=0.8499,2,3))) -> 0
B104: Annex 3.7 a : | D104: Safety and Security Basic Amenities
B106: SN | C106: General Items | I106: Score | J106: Max Score
B107: 1 | C107: Flash light | J107: 1
B108: 2 | C108: Whistle | J108: 1
B109: 3 | C109: List of Important Phone Numbers | J109: 1
B110: 4 | C110: Key Box | J110: 1
B111: 5 | C111: Emergency Alarm | J111: 1
B112: 6 | C112: Fire extinguisher at least one in each block | J112: 1
B113: Obtained Score | I113: =SUM($I$107:$I$112) -> 0 | J113: =SUM($J$107:$J$112) -> 6
B114: Total Percentage = Total Score/6 X 100 | I114: =$I$113/$J$113 -> 0.00%
B116: Each row gets a score of 1 in each row if is available otherwise 0 | G116: Scoring chart
G117: Total percentage | I117: Score
G118: 0% - 50% | I118: 0
G119: 50% - 70% | I119: 1
G120: 70% - 85% | I120: 2
G121: 85% - 100% | I121: 3
G122: Score for Standard 3.7.4 | I122: =IF($I$114<=0.4999,0, IF($I$114<=0.6999,1, IF($I$114<=0.8499,2,3))) -> 0
B127: Annex 3.11 a : | D127: Physical Facilities SSU
B129: SN | C129: General Items | G129: Required No. | I129: Score | J129: Max Score
B130: 1 | C130: Separate space for SSU | G130: Available | J130: 1
B131: 2 | C131: Desk | G131: 2 | J131: 1
B132: 3 | C132: Chairs | G132: 3 | J132: 1
B133: 4 | C133: Cupboard to keep clients' information with filing cabinet | G133: 1 | J133: 1
B134: 5 | C134: Recording and reporting forms | G134: as per need | J134: 1
B135: 6 | C135: Telephone | G135: 1 | J135: 1
B136: 7 | C136: Computer and printer | G136: 1 | J136: 1
B137: Total Score | I137: =SUM(I130:I136) -> 0 | J137: 7
B138: Total Percentage = Total Score/7 X 100 | I138: =$I$137/$J$137 -> 0.00%
B140: Each row gets a score of 1 in each row if is available otherwise 0 | G140: Scoring chart
G141: Total percentage | I141: Score
G142: 0% - 50% | I142: 0
G143: 50% - 70% | I143: 1
G144: 70% - 85% | I144: 2
G145: 85% - 100% | I145: 3
G146: Score for Standard 3.11.2 | I146: =IF($I$114<=0.4999,0, IF($I$114<=0.6999,1, IF($I$114<=0.8499,2,3))) -> 0

Sheet Action Plan
C1: HOSPITAL MANAGEMENT STRENGTHENING PROGRAM (HMSP)
C2: Minimum Service Standards (MSS) Plan of Action to Fulfill the Standard Gap
C4: Name: | D4: ='Summary Sheet'!$A$3 -> Hospital Name | G4: Date : | H4: ='Summary Sheet'!$C$5 -> 00:00:00
C5: Event: | D5: ='Summary Sheet'!C7&" "&'Summary Sheet'!D7 ->  | G5: Venue :
A7: Annex Score | B7: Standard Score | C7: Std No. | D7: Prioritized Gap | E7: Action Step to be taken to fulfill the gaps | F7: Person Responsible | G7: Time Frame | H7: Tentative Cost | I7: Type of Support (Managerial) | J7: Type of Support (Budgetary)
B8: =Standards!$E$5 -> 0 | C8: 1.1.1 | D8: Hospital Management Committee is formed
B9: =Standards!$E$6 -> 0 | C9: 1.1.2 | D9: All HMC members have received an orientation on HMC functions
B10: =Standards!$E$7 -> 0 | C10: 1.1.3 | D10: Medical Superintendent/ Director is fulfill as per organogram
B11: =Standards!$E$8 -> 0 | C11: 1.1.4.1 | D11: HMC meetings called upon by member secretary / Medical Superintendent headed by chairperson conducted at least 3 times per year or as per need
B12: =Standards!$E$10 -> 0 | C12: 1.1.4.2.1 | D12: Hospital services and utilization
B13: =Standards!$E$11 -> 0 | C13: 1.1.4.2.2 | D13: Hospital’s financial issues
B14: =Standards!$E$12 -> 0 | C14: 1.1.4.2.3 | D14: Patient rights issues e.g. patient facilities, analysis of complaints received, patient security
B15: =Standards!$E$13 -> 0 | C15: 1.1.4.2.4 | D15: Management issues- HR issues, security issues
B16: =Standards!$E$14 -> 0 | C16: 1.1.4.2.5 | D16: Infrastructure/ Equipment issues
B17: =Standards!$E$15 -> 0 | C17: 1.1.4.2.6 | D17: Coordination issues with local governance- rural municipality/ municipality, provincial, federal, DoHS, MoHP
B18: =Standards!$E$16 -> 0 | C18: 1.1.4.2.7 | D18: Review of decisions and recommendations of staff meeting and QI Committee meetings discussions
B19: =Standards!$E$17 -> 0 | C19: 1.1.5.1 | D19: Hospital implements health insurance program
B20: =Standards!$E$18 -> 0 | C20: 1.1.5.2 | D20: All targeted women receive Aama Surakhsya program incentives on time from hospital having this program (in last quarter)
B21: =Standards!$E$19 -> 0 | C21: 1.1.6 | D21: Annual plan & budget is approved by HMC before the fiscal year starts
B22: =Standards!$E$20 -> 0 | C22: 1.1.7 | D22: There is a separate locker for HMC documents.
B23: =Standards!$E$21 -> 0 | C23: 1.1.8.1 | D23: Updated citizens charter is displayed
B24: =Standards!$E$22 -> 0 | C24: 1.1.8.2 | D24: Notices of public concern are displayed publicly
B25: =Standards!$E$23 -> 0 | C25: 1.1.8.3 | D25: Complaint boxes are kept in a visible place in administration block
B26: =Standards!$E$24 -> 0 | C26: 1.1.8.4 | D26: Information officer opens complaint box at least once a week and issues are timely addressed
B27: =Standards!$E$25 -> 0 | C27: 1.1.8.5 | D27: Hospital has a website available and functional with latest information
B28: =Standards!$E$26 -> 0 | C28: 1.1.8.6 | D28: Hospital has geriatrics friendly infrastructure (like side rails for mobilization and support)
B29: =Standards!$E$27 -> 0 | C29: 1.1.8.7 | D29: Hospital has friendly environment for people with disability
B30: =Standards!$E$28 -> 0 | C30: 1.1.9.1 | D30: Mechanism for grievance and complain handling institutionalized
B31: =Standards!$E$29 -> 0 | C31: 1.1.9.2 | D31: Grievance and complains are effectively addressed
B32: =Standards!$E$30 -> 0 | C32: 1.1.10 | D32: Hospital its own operational manual with clear information on how the hospital operates its’ services
B33: =Standards!$E$31 -> 0 | C33: 1.1.11 | D33: Hospital Annual Report is available in website
B34: =Standards!$E$32 -> 0 | C34: 1.1.12 | D34: Social audit is conducted for last year
B35: =Standards!$E$39 -> 0 | C35: 1.2.1.1 | D35: Organogram of hospital showing departments/units with number of staffs is displayed
B36: =Standards!$E$40 -> 0 | C36: 1.2.1.2 | D36: Organogram of hospital is reviewed every 2 years and forwarded to higher authority
B37: =Standards!$E$41 -> 0 | C37: 1.2.1.3 | D37: Hospital provides 10 clinical services – OPD
B38: =Standards!$E$42 -> 0 | C38: 1.2.1.4 | D38: Hospital provides at least 5 super-specialized clinical services
B39: =Standards!$E$43 -> 0 | C39: 1.2.2 | D39: Written delegation of authorities is maintained
B40: =Standards!$E$44 -> 0 | C40: 1.2.3 | D40: Navigation chart with services and departments guiding clients to access services
B41: =Standards!$E$45 -> 0 | C41: 1.2.4 | D41: Hospital implements token and / or queue system for users (separate for elderly, disable and pregnant)
B42: =Standards!$E$46 -> 0 | C42: 1.2.5 | D42: All staffs of hospital use electronic attendance
B43: =Standards!$E$47 -> 0 | C43: 1.2.6.1 | D43: All clinical, technical and administrative staffs have apron / uniform which is worn on duty
B44: =Standards!$E$48 -> 0 | C44: 1.2.6.2 | D44: All hospital staffs carry personal ID cards when on duty
B45: =Standards!$E$49 -> 0 | C45: 1.2.7.1 | D45: Hand-over meetings are conducted daily and also in concerned department
B46: =Standards!$E$50 -> 0 | C46: 1.2.7.2 | D46: Morning conference is conducted everyday
B47: =Standards!$E$52 -> 0 | C47: 1.2.7.3.1 | D47: Intra- departmental meeting every two weeks
B48: =Standards!$E$53 -> 0 | C48: 1.2.7.3.2 | D48: Inter-departmental meeting once a month
B49: =Standards!$E$54 -> 0 | C49: 1.2.7.3.3 | D49: Staff meeting once a month
B50: =Standards!$E$55 -> 0 | C50: 1.2.7.4 | D50: Staff quarters are provided and adequate for the staffs
B51: =Standards!$E$56 -> 0 | C51: 1.2.7.5 | D51: Separate space allocated for breast feeding for staffs/ Separate space in duty room designated for breast feeding
B52: =Standards!$E$57 -> 0 | C52: 1.2.7.6 | D52: Transport services for hospital staffs covering all shifts
B53: =Standards!$E$65 -> 0 | C53: 1.3.1 | D53: Personnel administration guideline of HMC is available (for all staffs including locally hired staff) and practiced accordingly
B54: =Standards!$E$66 -> 0 | C54: 1.3.2 | D54: Individual records of all staffs including contract staffs are maintained and updated.
A55: =Standards!$E$67 -> 0 | C55: 1.3.3.1 | D55: Staffs available for service in hospital as per organogram (See Annex 1.3a Functional Organogram Section I: At the end of this standard)
B56: =Standards!$E$68 -> 0 | C56: 1.3.3.2 | D56: Maaga Akriti form (माग आकृति फारम) correspondence to fulfill vacant positions to concerned authority as per guideline
B57: =Standards!$E$69 -> 0 | C57: 1.3.4 | D57: All staffs including HMC staffs are given a job description when they are recruited/ posted to the hospital (permanent and contract staff)
B58: =Standards!$E$70 -> 0 | C58: 1.3.5.1 | D58: Performance appraisal (का. स. मु.) of all staffs is done as per guideline
B59: =Standards!$E$71 -> 0 | C59: 1.3.6.1 | D59: A training plan for the hospital is developed based on the training needs of the staff identified at the performance appraisal
B60: =Standards!$E$72 -> 0 | C60: 1.3.6.2 | D60: For training and related activities, at any point of time, the acceptable work absenteeism is <10% of staff
B61: =Standards!$E$73 -> 0 | C61: 1.3.6.3 | D61: There is activity conducted to motivate staff (staff retreat, rewards, recognition of performances, etc.) at least once a year.
B62: =Standards!$E$74 -> 0 | C62: 1.3.6.4 | D62: Hospital has system for addressing occupational hazard like needle stick injury, radiation exposure, vaccination
B63: =Standards!$E$75 -> 0 | C63: 1.3.7.1 | D63: Hospital conducts CPD / CME classes to technical staff weekly
B64: =Standards!$E$76 -> 0 | C64: 1.3.7.2 | D64: Written record of attendance, subjects presented and discussed during CPD/CME
B65: =Standards!$E$77 -> 0 | C65: 1.3.7.3 | D65: Separate space with furniture, audio-visual aids and internet for CPD/CME/meeting are available.
B66: =Standards!$E$78 -> 0 | C66: 1.3.7.4 | D66: If hospital is a training site, training guideline of National Health Training Centre is followed
B67: =Standards!$E$79 -> 0 | C67: 1.3.8.1 | D67: Hospital has space designated for library with sitting arrangement for readers
B68: =Standards!$E$80 -> 0 | C68: 1.3.8.2 | D68: A list of national health guidelines and treatment protocols available and inventory managed for readers accessing it
B69: =Standards!$E$81 -> 0 | C69: 1.3.8.3 | D69: Computers with printing and photocopy facility available
B70: =Standards!$E$82 -> 0 | C70: 1.3.8.6 | D70: Access to internet facility with institutional access to at least one of the international health related domain like HINARI
B71: =Standards!$E$90 -> 0 | C71: 1.4.1.1 | D71: Dedicated account department of hospital with space and furniture
B72: =Standards!$E$91 -> 0 | C72: 1.4.1.2 | D72: At least one accountant available for hospital financial management
B73: =Standards!$E$92 -> 0 | C73: 1.4.2.1 | D73: An annual hospital budget is developed incorporating the revenue from services, government grants, and support provided by other organizations.
B74: =Standards!$E$93 -> 0 | C74: 1.4.2.2 | D74: Internal income is reviewed during budgeting every year.
B75: =Standards!$E$94 -> 0 | C75: 1.4.3 | D75: The service fees of the hospital are fixed by HMC every year.
B76: =Standards!$E$95 -> 0 | C76: 1.4.4 | D76: Daily income is deposited in the bank every day.
B77: =Standards!$E$96 -> 0 | C77: 1.4.5.1 | D77: Budget absorption rate of last fiscal year is as per national target
B78: =Standards!$E$97 -> 0 | C78: 1.4.5.2 | D78: Internal audit, financial and physical progress review is done at least once each trimester (once in every 4 months).
B79: =Standards!$E$98 -> 0 | C79: 1.4.5.3 | D79: Final audit/ external audited accounts are available for last year.
B80: =Standards!$E$99 -> 0 | C80: 1.4.6.1 | D80: The hospital uses central electronic billing system
B81: =Standards!$E$100 -> 0 | C81: 1.4.6.2 | D81: The hospital uses TABUCS/ LMBIS for accounting including local income and expenses by HMC.
B82: =Standards!$E$101 -> 0 | C82: 1.4.7.1 | D82: The hospital prepares and keeps monthly financial report.
B83: =Standards!$E$102 -> 0 | C83: 1.4.7.2 | D83: Trimester financial report is produced (every 4 months) and financial status tracked and discussed in meetings
B84: =Standards!$E$103 -> 0 | C84: 1.4.7.3 | D84: Annual financial report is submitted to HMC.
B85: =Standards!$E$104 -> 0 | C85: 1.4.8.1 | D85: Financial irregularities are responded within 35 days
B86: =Standards!$E$105 -> 0 | C86: 1.4.8.2 | D86: Clearance of financial authorities is done as per national target
B87: =Standards!$E$106 -> 0 | C87: 1.4.9 | D87: Inventory inspection is done once in a year and managed accordingly
B88: =Standards!$E$114 -> 0 | C88: 1.5.1.1 | D88: Client registration is digitalized using standard software
B89: =Standards!$E$115 -> 0 | C89: 1.5.1.2 | D89: Referral in and out records are kept using the standard form (HMIS 1.4) and register.
B90: =Standards!$E$116 -> 0 | C90: 1.5.1.3 | D90: Electronic health record system that generates the HMIS monthly report (HMIS 9.4) is in place
B91: =Standards!$E$117 -> 0 | C91: 1.5.2.1 | D91: There is a functional Medical Record Section
B92: =Standards!$E$118 -> 0 | C92: 1.5.2.2 | D92: All patients' records are kept in individual folders in racks or held digitally.
B93: =Standards!$E$119 -> 0 | C93: 1.5.2.3 | D93: There is a set of functional computer and printer available for maintaining medical records.
B94: =Standards!$E$120 -> 0 | C94: 1.5.3.1 | D94: Hospital monthly reports (HMIS 9.4) of the last three months are shared to the national database
B95: =Standards!$E$121 -> 0 | C95: 1.5.3.2 | D95: Hospital services utilization statistics are analyzed at least every month and shared with all the HODs and in-charge via email, paper and/or dashboard. (Check last three months status)
B96: =Standards!$E$122 -> 0 | C96: 1.5.3.3 | D96: Statistics including OPD morbidity pattern data, IPD data, surveillance data are analyzed and discussed in staff meeting and CPD/CME (Check the status in the last meeting)
B97: =Standards!$E$123 -> 0 | C97: 1.5.3.4 | D97: Key statistics of service utilization is displayed in respective Departments/ Wards
B98: =Standards!$E$124 -> 0 | C98: 1.5.3.5 | D98: Medico-legal incidents and services are recorded
B99: =Standards!$E$125 -> 0 | C99: 1.5.4.1 | D99: Medical recorder is trained on ICD and DHIS2
B100: =Standards!$E$126 -> 0 | C100: 1.5.4.2 | D100: An information officer is specified to communicate with patients/clients, their relatives, media and other stakeholders.
B101: =Standards!$E$127 -> 0 | C101: 1.5.4.3 | D101: Contact details of information officer is displayed in hospital premises with photo and phone number.
B102: =Standards!$E$135 -> 0 | C102: 1.6.1.1 | D102: Hospital QI committee is formed according to Guideline.
B103: =Standards!$E$136 -> 0 | C103: 1.6.1.2 | D103: Hospital QHSDMS committee meetings are held at least every 4 months.
B104: =Standards!$E$137 -> 0 | C104: 1.6.2 | D104: The hospital has a statement of patient rights and responsibilities, which is posted in public places in the hospital.
B105: =Standards!$E$138 -> 0 | C105: 1.6.3 | D105: The findings of social audit like client exit interview are shared in whole staff meeting
B106: =Standards!$E$139 -> 0 | C106: 1.6.4 | D106: The hospital has assessed the hospital quality using the MSS tool at least every 4 months
B107: =Standards!$E$140 -> 0 | C107: 1.6.5 | D107: The hospital has developed specific plans to improve quality based on the MSS assessment.
A108: =Standards!$E$141 -> 0 | C108: 1.6.6 | D108: Hospital uses QI tools for assessment of the major priority government programs (less than 50%=0, 50-70% =1, 70-85% = 2, 85-100% =3)
B109: =Standards!$E$142 -> 0 | C109: 1.6.7.1 | D109: Hospital has implemented the specific activities based on the MSS plan.
B110: =Standards!$E$143 -> 0 | C110: 1.6.7.2 | D110: Hospital has implemented specific activities based on gap analysis of QI tools
B111: =Standards!$E$144 -> 0 | C111: 1.6.8.1 | D111: The hospital has functional MPDSR committee (in program district)
B112: =Standards!$E$146 -> 0 | C112: 1.6.8.2.1 | D112: Investigations and complications of treatment including medication error
B113: =Standards!$E$147 -> 0 | C113: 1.6.8.2.2 | D113: Hospital acquired infections (HAI)
B114: =Standards!$E$148 -> 0 | C114: 1.6.8.3 | D114: Mortality audit of every death in the hospital is done and reported
B115: =Standards!$E$149 -> 0 | C115: 1.6.8.4 | D115: Hospital implements Robson’s classification (hospitals with CEONC services)
B116: =Standards!$E$150 -> 0 | C116: 1.6.8.5 | D116: Hospital implements baby friendly initiative
A117: =Standards!$E$159 -> 0 | C117: 2.1.1.1 | D117: OPD is open from 10 AM to 3 PM (See Checklist 2.1 At the end of this standard for scoring).
B118: =Standards!$E$160 -> 0 | C118: 2.1.1.2 | D118: Tickets for routine OPD are available till 2 pm
B119: =Standards!$E$161 -> 0 | C119: 2.1.1.3 | D119: EHS services from 3PM onwards and tickets available from 2PM onwards
B120: =Standards!$E$162 -> 0 | C120: 2.1.2.1 | D120: There should be one administrator to manage all OPDs and procedure room
B121: =Standards!$E$163 -> 0 | C121: 2.1.2.2 | D121: Doctor: OPD Patients- 1:35-50 per day for quality of care (*for dental services this ratio is 1:20)
B122: =Standards!$E$164 -> 0 | C122: 2.1.1.2.3 | D122: One screening counter with 1 paramedics for every four OPDs and there should be one nurse in OBGYN OPD
A123: =Standards!$E$165 -> 0 | C123: 2.1.3 | D123: Patient privacy maintained with separate rooms, curtains hung, maintaining queuing of patients with paging system in OPD (See Checklist 2.1 At the end of this standard for scoring).
A124: =Standards!$E$166 -> 0 | C124: 2.1.4.1 | D124: Counseling is provided to patients about the type of treatment being given and its consequences (See Checklist 2.1 At the end of this standard for scoring).
B125: =Standards!$E$167 -> 0 | C125: 2.1.4.2 | D125: Appropriate IEC materials (posters, leaflets etc.) as an IEC corner available in the OPD waiting area.
A126: =Standards!$E$168 -> 0 | C126: 2.1.5.1 | D126: Adequate rooms and space for the practitioners and patients are available (See Checklist 2.1 At the end of this standard for scoring).
A127: =Standards!$E$169 -> 0 | C127: 2.1.5.2 | D127: Light and ventilation are adequately maintained. (See Checklist 2.1 At the end of this standard for scoring)
A128: =Standards!$E$171 -> 0 | C128: 2.1.5.3.1 | D128: General Medicine OPD (See Annex 2.1a Furniture and supplies for OPD At the end of this standard)
A129: =Standards!$E$172 -> 0 | C129: 2.1.5.3.2 | D129: Obstetrics and Gynecology OPD (See Annex 2.1a Furniture and supplies for OPD At the end of this standard)
A130: =Standards!$E$173 -> 0 | C130: 2.1.5.3.3 | D130: Pediatrics OPD (See Annex 2.1a Furniture and supplies for OPD At the end of this standard)
A131: =Standards!$E$174 -> 0 | C131: 2.1.5.3.4 | D131: Surgical OPD (See Annex 2.1a Furniture and supplies for OPD At the end of this standard)
A132: =Standards!$E$175 -> 0 | C132: 2.1.5.3.5 | D132: Dental OPD (See Annex 2.1a Furniture and supplies for OPD At the end of this standard)
A133: =Standards!$E$176 -> 0 | C133: 2.1.5.3.6 | D133: Orthopedics OPD (See Annex 2.1a Furniture and supplies for OPD At the end of this standard)
A134: =Standards!$E$177 -> 0 | C134: 2.1.5.3.7 | D134: Psychiatry OPD (See Annex 2.1a Furniture and supplies for OPD At the end of this standard)
A135: =Standards!$E$178 -> 0 | C135: 2.1.5.3.8 | D135: ENT OPD (See Annex 2.1a Furniture and supplies for OPD At the end of this standard)
A136: =Standards!$E$179 -> 0 | C136: 2.1.5.3.9 | D136: Dermatology OPD (See Annex 2.1a Furniture and supplies for OPD At the end of this standard)
A137: =Standards!$E$180 -> 0 | C137: 2.1.5.3.10 | D137: Opthalmology OPD (See Annex 2.1a Furniture and supplies for OPD At the end of this standard)
A138: =Standards!$E$181 -> 0 | C138: 2.1.5.3.11 | D138: Cardiology OPD (See Annex 2.1a Furniture and supplies for OPD At the end of this standard)
A139: =Standards!$E$182 -> 0 | C139: 2.1.5.3.12 | D139: Urology OPD (See Annex 2.1a Furniture and supplies for OPD At the end of this standard)
A140: =Standards!$E$183 -> 0 | C140: 2.1.5.3.13 | D140: Neurosurgery OPD (See Annex 2.1a Furniture and supplies for OPD At the end of this standard)
A141: =Standards!$E$184 -> 0 | C141: 2.1.5.3.14 | D141: Neurology OPD (See Annex 2.1a Furniture and supplies for OPD At the end of this standard)
A142: =Standards!$E$185 -> 0 | C142: 2.1.5.3.15 | D142: Burn/Plastic OPD (See Annex 2.1a Furniture and supplies for OPD At the end of this standard)
A143: =Standards!$E$186 -> 0 | C143: 2.1.5.3.16 | D143: Nephrology OPD (See Annex 2.1a Furniture and supplies for OPD At the end of this standard)
A144: =Standards!$E$187 -> 0 | C144: 2.1.5.3.17 | D144: Gastrology OPD (See Annex 2.1a Furniture and supplies for OPD At the end of this standard)
A145: =Standards!$E$188 -> 0 | C145: 2.1.5.4 | D145: Each OPD has designated space/room for procedure room/area with basic supplies of dressing, injection and procedures (specific to OPD like PV for Obstetrics /gynecology, PR for surgery) and hand washing facility (See Checklist 2.1 At the end of this standard for scoring)
A146: =Standards!$E$190 -> 0 | C146: 2.1.6.1 | D146: General OPD (See Annex 2.1b Basic Equipment and Instrument for OPD At the end of this standard)
A147: =Standards!$E$191 -> 0 | C147: 2.1.6.2 | D147: Obstetrics and Gynecology OPD (See Annex 2.1b Basic Equipment and Instrument for OPD At the end of this standard)
A148: =Standards!$E$192 -> 0 | C148: 2.1.6.3 | D148: Pediatrics OPD (See Annex 2.1b Basic Equipment and Instrument for OPD At the end of this standard)
A149: =Standards!$E$193 -> 0 | C149: 2.1.6.4 | D149: Surgical OPD(See Annex 2.1b Basic Equipment and Instrument for OPD At the end of this standard)
A150: =Standards!$E$194 -> 0 | C150: 2.1.6.5.1 | D150: Dental OPD (See Annex 2.1cBasic Equipment and Instrument for Dental OPD At the end of this standard)
B151: =Standards!$E$195 -> 0 | C151: 2.1.6.5.2 | D151: Dental OPD has fully functioning electric dental chair with adequate light, water supply and drainage system with suction machine
B152: =Standards!$E$196 -> 0 | C152: 2.1.6.5.3 | D152: Dental OPD has iopa x-ray machine (along with lead apron and thyroid collar
A153: =Standards!$E$197 -> 0 | C153: 2.1.6.6 | D153: Orthopedics OPD (See Annex 2.1b Basic Equipment and Instrument for OPD At the end of this standard)
A154: =Standards!$E$198 -> 0 | C154: 2.1.6.7 | D154: Psychiatry OPD (See Annex 2.1b Basic Equipment and Instrument for OPD At the end of this standard)
A155: =Standards!$E$199 -> 0 | C155: 2.1.6.8 | D155: ENT OPD (See Annex 2.1b Basic Equipment and Instrument for OPD At the end of this standard)
A156: =Standards!$E$200 -> 0 | C156: 2.1.6.9 | D156: Dermatology OPD (See Annex 2.1b Basic Equipment and Instrument for OPD At the end of this standard)
A157: =Standards!$E$201 -> 0 | C157: 2.1.6.10 | D157: Opthalmology OPD (See Annex 2.1b Furniture and supplies for OPD At the end of this standard)
A158: =Standards!$E$202 -> 0 | C158: 2.1.6.11 | D158: Cardiology OPD (See Annex 2.1b Basic Equipment and Instrument for OPD At the end of this standard)
A159: =Standards!$E$203 -> 0 | C159: 2.1.6.12 | D159: Urology OPD (See Annex 2.1b Basic Equipment and Instrument for OPD At the end of this standard)
A160: =Standards!$E$204 -> 0 | C160: 2.1.6.13 | D160: Neurosurgery OPD (See Annex 2.1b Basic Equipment and Instrument for OPD At the end of this standard)
A161: =Standards!$E$205 -> 0 | C161: 2.1.6.14 | D161: Neurology OPD (See Annex 2.1b Basic Equipment and Instrument for OPD At the end of this standard)
A162: =Standards!$E$206 -> 0 | C162: 2.1.6.15 | D162: Burn/Plastic OPD (See Annex 2.1b Basic Equipment and Instrument for OPD At the end of this standard)
A163: =Standards!$E$207 -> 0 | C163: 2.1.6.16 | D163: Nephrology OPD (See Annex 2.1b Basic Equipment and Instrument for OPD At the end of this standard)
A164: =Standards!$E$208 -> 0 | C164: 2.1.6.16 | D164: Gastrology OPD (See Annex 2.1b Basic Equipment and Instrument for OPD At the end of this standard)
B165: =Standards!$E$209 -> 0 | C165: 2.1.7 | D165: Duty rosters of all OPDs are developed regularly and available in appropriate location.
B166: =Standards!$E$210 -> 0 | C166: 2.1.8.1 | D166: Comfortable waiting space with sitting arrangement is available for at least 100 persons in waiting lobby (for total OPDs)
B167: =Standards!$E$211 -> 0 | C167: 2.1.8.2 | D167: Safe drinking water is available in the waiting lobby throughout the day.
B168: =Standards!$E$212 -> 0 | C168: 2.1.8.3 | D168: There are four toilets with hand‑washing facilities (2 for males and 2 for females separate, one each universal toilet)
B169: =Standards!$E$213 -> 0 | C169: 2.1.8.4 | D169: Hand‑washing facilities are available for patients
A170: =Standards!$E$214 -> 0 | C170: 2.1.9 | D170: OPD register available in every OPD with ICD 10 classification for diagnosis recorded (electronic health recording system) (See checklist 2.1 At the end of this standard for scoring)
A171: =Standards!$E$215 -> 0 | C171: 2.1.10.1 | D171: Masks and gloves are available and used (See Checklist 2.1 At the end of this standard for scoring)
A172: =Standards!$E$216 -> 0 | C172: 2.1.10.2 | D172: There are well labeled colored bins for waste segregation and disposal as per HCWM guideline 2014 (MoHP) (See Checklist 2.1 At the end of this standard for scoring)
A173: =Standards!$E$217 -> 0 | C173: 2.1.10.3 | D173: Hand‑washing facility with running water and soap or hand sanitizer is available for practitioners (See Checklist 2.1 At the end of this standard for scoring)
A174: =Standards!$E$218 -> 0 | C174: 2.1.10.4 | D174: Needle cutter is used (See Checklist 2.1 At the end of this standard for scoring)
A175: =Standards!$E$219 -> 0 | C175: 2.1.10.5 | D175: Chlorine solution is available and utilized for decontamination (See Checklist 2.1 At the end of this standard for scoring).
B176: =Standards!$E$229 -> 0 | C176: 2.2.1.1 | D176: Immunization and growth monitoring service is available from 10 AM to 3 PM.
B177: =Standards!$E$230 -> 0 | C177: 2.2.1.2 | D177: Adequate numbers of healthcare workers are available (at least 2 HA/SN)
B178: =Standards!$E$231 -> 0 | C178: 2.2.1.3 | D178: Appropriate techniques have been used to ensure the patient privacy (separate rooms, curtains hung, maintaining queuing of patients).
B179: =Standards!$E$232 -> 0 | C179: 2.2.1.4.1 | D179: Counseling is provided to caretaker about the type of vaccine, its schedule, nutritional status of child.
B180: =Standards!$E$233 -> 0 | C180: 2.2.1.4.2 | D180: Appropriate IEC/BCC materials on vaccine, schedule and child growth and nutrition are available in clinic
A181: =Standards!$E$234 -> 0 | C181: 2.2.1.5 | D181: Immunization and growth monitoring instrument, equipment and supplies are available (See Annex 2.2.1a Immunization and growth monitoring At the end of this standard)
B182: =Standards!$E$235 -> 0 | C182: 2.2.1.6.1 | D182: Adequate rooms and space for health worker and patients are available with at least one working table, chair for health worker and two patients’ chair
B183: =Standards!$E$236 -> 0 | C183: 2.2.1.6.2 | D183: Light and ventilation are adequately maintained.
B184: =Standards!$E$237 -> 0 | C184: 2.2.1.7.1 | D184: Patient’s card (Health card, growth chart) and register available and services recorded
B185: =Standards!$E$238 -> 0 | C185: 2.2.1.7.2 | D185: Adverse immunization reactions, complication, severe under-nutrition and referral to other sites recorded and reported
B186: =Standards!$E$239 -> 0 | C186: 2.2.1.8.1 | D186: Masks and gloves are available and used
B187: =Standards!$E$240 -> 0 | C187: 2.2.1.8.2 | D187: There are well labelled colored bins for waste segregation and disposal as per HCWM guideline 2014 (MoHP)
B188: =Standards!$E$241 -> 0 | C188: 2.2.1.8.3 | D188: Hand‑washing facility with running water and soap is available for practitioners.
B189: =Standards!$E$242 -> 0 | C189: 2.2.1.8.4 | D189: Needle cutter is used
B190: =Standards!$E$243 -> 0 | C190: 2.2.1.8.5 | D190: Chlorine solution is available and utilized.
B191: =Standards!$E$251 -> 0 | C191: 2.2.2.1 | D191: Family planning service is available from 10 AM to 3 PM.
B192: =Standards!$E$252 -> 0 | C192: 2.2.2.2 | D192: A separate area dedicated for FP counseling and Services
B193: =Standards!$E$253 -> 0 | C193: 2.2.2.3 | D193: Adequate numbers of healthcare workers are available (at least 2 HA/ SN)
B194: =Standards!$E$254 -> 0 | C194: 2.2.2.4 | D194: Appropriate techniques have been used to ensure the patient privacy (separate rooms, curtains hung, maintaining queuing of patients).
B195: =Standards!$E$255 -> 0 | C195: 2.2.2.5.1 | D195: Counseling is provided to users for family planning methods
B196: =Standards!$E$256 -> 0 | C196: 2.2.2.5.2 | D196: Appropriate IEC/BCC materials on family planning including DMT tool used for counseling
A197: =Standards!$E$257 -> 0 | C197: 2.2.2.6 | D197: Supplies for Family Planning Services available (See Annex 2.2.2a Supplies for FP services At the end of this standard)
B198: =Standards!$E$258 -> 0 | C198: 2.2.2.7 | D198: Sphygmomanometer, stethoscope, thermometer, and weighing scale available
B199: =Standards!$E$259 -> 0 | C199: 2.2.2.8.1 | D199: Adequate rooms and space for health worker and patients are available with at least one working table, chair for health worker and two patients’ chair and one examination bed
B200: =Standards!$E$260 -> 0 | C200: 2.2.2.8.2 | D200: Light and ventilation are adequately maintained.
B201: =Standards!$E$261 -> 0 | C201: 2.2.2.9.1 | D201: Patient’s health card and register available and services recorded
B202: =Standards!$E$262 -> 0 | C202: 2.2.2.9.2 | D202: FP related complication, defaulter and contraceptive failure are recorded and reported
... 970 more rows

Sheet Background Sheet (hidden)
A2: Summary Sheet | F2: Province | G2: Province_Name | H2: Province_1 | I2: Province_2 | J2: Province_3 | K2: Gandaki_Province | L2: Province_5 | M2: Karnali_Province | N2: Sudur_Paschim_Province | P2: दिन | Q2: Day | R2: महिना | S2: Month | T2: साल | U2: Year
F3: Province_Name | G3: Hospital Name | P3: 1 | Q3: 1 | R3: बैशाख | S3: Baishakh | T3: 2075 | U3: 2075
A4: Summary_Province | C4: ='Summary Sheet'!#REF! ->  | F4: Province_1 | H4: Bhojpur District Hospital | I4: Bardibas Hospital, Mahottari | J4: Bagauda Hospital, Chitwan | K4: Bandipur Hospital, Tanahun | L4: Arghakhanchi Hospital | M4: Dailekh District Hospital | N4: Achham District Hospital | P4: 2 | Q4: 2 | R4: जेष्ठ | S4: Jestha | T4: 2076 | U4: 2076
A5: Summary_Name | C5: ='Summary Sheet'!$A$3 -> Hospital Name | F5: Province_2 | H5: Damak Hospital, Jhapa | I5: Bhardaha Hospital, Saptari | J5: Bakulahar Ratna Nagar Hospital, Chitwan | K5: Beni Hospital, Myagdi | L5: Bhim Hospital, Rupandehi | M5: Dolpa District Hospital | N5: Baitadi District Hospital | P5: 3 | Q5: 3 | R5: असार | S5: Asar | T5: 2077 | U5: 2077
A6: Summary_Date | C6: ='Summary Sheet'!$C$5 -> 00:00:00 | F6: Province_3 | H6: Dhankuta District Hospital | I6: Chandranigahapur Hospital, Rautahat | J6: Chautara Hospital, Sindhupalchowk | K6: Chapakot Hospital, Syangja | L6: Chisapani Hospital, Parasi | M6: Dullu Hospital, Dailekh | N6: Bajhang District Hospital | P6: 4 | Q6: 4 | R6: श्रावन | S6: Sharwan | T6: 2078 | U6: 2078
A7: Summary_Event | C7: ='Summary Sheet'!$C$7 -> 0 | F7: Gandaki_Province | H7: Gaighat Hospital, Udayapur | I7: Gaur Hospital, Rautahat | J7: Dhading District Hospital | K7: Damauli Hospital, Tanahun | L7: Gulariya Hospital, Bardiya | M7: Humla District Hospital | N7: Bajura District Hospital | P7: 5 | Q7: 5 | R7: भाद्र | S7: Bhadra | T7: 2079 | U7: 2079
A8: Summary_Number | C8: ='Summary Sheet'!$D$7 ->  | F8: Province_5 | H8: Ilam District Hospital | I8: Jaleshwor Hospital, Mahottari | J8: Hetauda Hospital, Makwanpur | K8: Gorkha District Hospital | L8: Gulmi District Hospital | M8: Jajarkot District Hospital | N8: Dadeldhura District Hospital | P8: 6 | Q8: 6 | R8: अशोज | S8: Ashwin | T8: 2080 | U8: 2080
A9: Summary_Score_Gov | C9: ='Summary Sheet'!$H$17 -> 0 | F9: Karnali_Province | H9: Inaruwa Hospital, Sunsari | I9: Kalaiya Hospital, Bara | J9: Jiri Hospital, Dolakha | K9: Manang District Hospital | L9: Lamahi Hospital, Dang | M9: Kalikot District Hospital | N9: Darchula District Hospital | P9: 7 | Q9: 7 | R9: कार्तिक | S9: Kartik | T9: 2081 | U9: 2081
A10: Summary_Score_Org_Mgmt | C10: ='Summary Sheet'!$H$18 -> 0 | F10: Sudur_Paschim_Province | H10: Katari Hospital, Udayapur | I10: Lahan Hospital, Siraha | J10: Methinkot Hospital, Kavre | K10: Matri Sishu Miteri Hospital, Kaski | L10: Palpa District Hospital | M10: Mehelkuna Hospital, Surkhet | N10: Doti District Hospital | P10: 8 | Q10: 8 | R10: मङ्सिर | S10: Mangshir | T10: 2082 | U10: 2082
A11: Summary_Score_HRM&D | C11: ='Summary Sheet'!$H$19 -> 0 | H11: Khotang District Hospital | I11: Malangawa Hospital, Sarlahi | J11: Ramechhap District Hospital | K11: Mustang District Hospital | L11: Pipara Hospital, Kapilvastu | M11: Mugu District Hospital | N11: Gokuleshwor Hospital, Darchula | P11: 9 | Q11: 9 | R11: पौष | S11: Poush | T11: 2083 | U11: 2083
A12: Summary_Score_Fin_Mgmt | C12: ='Summary Sheet'!$H$20 -> 0 | H12: Mangalbare Hospital, Morang | I12: Pokhariya Hospital, Parsa | J12: Rasuwa District Hospital | K12: Parbat District Hospital | L12: Prithivi Chandra Hospital, Parasi | M12: Rukum Hospital, Rukum (West) | N12: Malakheti Hospital, Kailali | P12: 10 | Q12: 10 | R12: माघ | S12: Magh | T12: 2084 | U12: 2084
A13: Summary_Score_Med_Records | C13: ='Summary Sheet'!$H$21 -> 0 | H13: Panchthar District Hospital | I13: Siraha District Hospital | J13: Sindhuli District Hospital | K13: Sisuwa Hospital, Kaski | L13: Pyuthan District Hospital | M13: Salyan District Hospital | N13: Tikapur Hospital, Kailali | P13: 11 | Q13: 11 | R13: फागुन | S13: Falgun | T13: 2085 | U13: 2085
A14: Summary_Score_Qlty_Mgmt | C14: ='Summary Sheet'!$H$22 -> 0 | H14: Phaplu Hospital, Solukhumbu | J14: Trishuli Hospital, Nuwakot | K14: Sundar Bazar, Lamjung | L14: Rampur Hospital, Palpa | P14: 12 | Q14: 12 | R14: चैत्र | S14: Chaitra | T14: 2086 | U14: 2086
A15: Summary_Score_Total _Gov&Mgmt | C15: ='Summary Sheet'!$H$23 -> 0 | H15: Rangeli Hospital, Morang | K15: Syangja District Hospital | L15: Rolpa District Hospital | P15: 13 | Q15: 13 | T15: 2087 | U15: 2087
A16: Summary_Score_OPD | C16: ='Summary Sheet'!$H$25 -> 0 | H16: Rumjatar Hospital, Okhaldhunga | L16: Shibaraj Hospital, Kapilvastu | P16: 14 | Q16: 14 | T16: 2088 | U16: 2088
A17: Summary_Score_Speical_Clinic | C17: ='Summary Sheet'!$H$26 -> 0 | H17: Sankhuwasabha District Hospital | L17: Taulihawa Hospital, Kapilvastu | P17: 15 | Q17: 15 | T17: 2089 | U17: 2089
A18: Summary_Score_ER_Service | C18: ='Summary Sheet'!$H$27 -> 0 | H18: Taplejung District Hospital | P18: 16 | Q18: 16 | T18: 2090 | U18: 2090
A19: Summary_Score_Emergency_Minor_OT | C19: ='Summary Sheet'!$H$28 -> 0 | H19: Terhathum District Hospital | P19: 17 | Q19: 17
A20: Summary_Score_Hspt_Pharmacy | C20: ='Summary Sheet'!$H$29 -> 0 | P20: 18 | Q20: 18
A21: Summary_Score_Inpatient_Service | C21: ='Summary Sheet'!$H$30 -> 0 | P21: 19 | Q21: 19
A22: Summary_Score_Delivery_Service | C22: ='Summary Sheet'!$H$31 -> 0 | P22: 20 | Q22: 20
A23: Summary_Score_Maternity_Inpatient | C23: ='Summary Sheet'!$H$32 -> 0 | P23: 21 | Q23: 21
A24: Summary_Score_Birthing_Center | C24: ='Summary Sheet'!$H$33 -> 0 | P24: 22 | Q24: 22
A25: Summary_Score_Surgery | C25: ='Summary Sheet'!$H$34 -> 0 | H25: Hospital Name | I25: Province | P25: 23 | Q25: 23
A26: Summary_Score_Hemodialysis | C26: ='Summary Sheet'!$H$35 -> 0 | H26: Bhojpur District Hospital | I26: Province 1 | P26: 24 | Q26: 24
A27: Summary_Score_ICU | C27: ='Summary Sheet'!$H$36 -> 0 | H27: Damak Hospital, Jhapa | I27: Province 1 | P27: 25 | Q27: 25
A28: Summary_Score_NICU | C28: ='Summary Sheet'!$H$37 -> 0 | H28: Dhankuta District Hospital | I28: Province 1 | P28: 26 | Q28: 26
A29: Summary_Score_PICU | C29: ='Summary Sheet'!$H$38 -> 0 | H29: Gaighat Hospital, Udayapur | I29: Province 1 | P29: 27 | Q29: 27
A30: Summary_Score_Diagnostics_&_Lab | C30: ='Summary Sheet'!$H$39 -> 0 | H30: Ilam District Hospital | I30: Province 1 | P30: 28 | Q30: 28
A31: Summary_Score_Post-mortem | C31: ='Summary Sheet'!$H$40 -> 0 | H31: Inaruwa Hospital, Sunsari | I31: Province 1 | P31: 29 | Q31: 29
A32: Summary_Score_Medico-legal | C32: ='Summary Sheet'!$H$41 -> 0 | H32: Katari Hospital, Udayapur | I32: Province 1 | P32: 30 | Q32: 30
A33: Summary_Score_OSCM | C33: ='Summary Sheet'!$H$42 -> 0 | H33: Khotang District Hospital | I33: Province 1 | P33: 31 | Q33: 31
A34: Summary_Score_Physiotherapy | C34: ='Summary Sheet'!$H$43 -> 0 | H34: Mangalbare Hospital, Morang | I34: Province 1 | P34: 32 | Q34: 32
A35: Summary_Score_Dietetics | C35: ='Summary Sheet'!$H$44 -> 0 | H35: Panchthar District Hospital | I35: Province 1
A36: Summary_Score_Cardiac | C36: ='Summary Sheet'!$H$45 -> 0 | H36: Phaplu Hospital, Solukhumbu | I36: Province 1
A37: Summary_Score_Total_Clinical | C37: ='Summary Sheet'!$H$46 -> 0 | H37: Rangeli Hospital, Morang | I37: Province 1
A38: Summary_Score_CSSD | C38: ='Summary Sheet'!$H$48 -> 0 | H38: Rumjatar Hospital, Okhaldhunga | I38: Province 1
A39: Summary_Score_Laundry | C39: ='Summary Sheet'!$H$49 -> 0 | H39: Sankhuwasabha District Hospital | I39: Province 1
A40: Summary_Score_Housekeeping | C40: ='Summary Sheet'!$H$50 -> 0 | H40: Taplejung District Hospital | I40: Province 1
A41: Summary_Score_Repair | C41: ='Summary Sheet'!$H$51 -> 0 | H41: Terhathum District Hospital | I41: Province 1
A42: Summary_Score_Water_Supply | C42: ='Summary Sheet'!$H$52 -> 0 | H42: Bhardaha Hospital, Saptari | I42: Province 2
A43: Summary_Score_HWM | C43: ='Summary Sheet'!$H$53 -> 0 | H43: Chandranigahapur Hospital, Rautahat | I43: Province 2
A44: Summary_Score_Safety_Security | C44: ='Summary Sheet'!$H$54 -> 0 | H44: Gaur Hospital, Rautahat | I44: Province 2
A45: Summary_Score_Trans_Comm | C45: ='Summary Sheet'!$H$55 -> 0 | H45: Kalaiya Hospital, Bara | I45: Province 2
A46: Summary_Score_Store | C46: ='Summary Sheet'!$H$56 -> 0 | H46: Lahan Hospital, Siraha | I46: Province 2
A47: Summary_Score_Canteen | C47: ='Summary Sheet'!$H$57 -> 0 | H47: Malangawa Hospital, Sarlahi | I47: Province 2
A48: Summary_Score_SSU | C48: ='Summary Sheet'!$H$58 -> 0 | H48: Pokhariya Hospital, Parsa | I48: Province 2
A49: Summary_Score_Total_Support Services | C49: ='Summary Sheet'!$H$59 -> 0 | H49: Siraha District Hospital | I49: Province 2
A50: Std_1.1.1 | B50: =Standards!$D$5 -> Hospital Management Committee is formed | C50: =Standards!$E$5 -> 0 | H50: Bagauda Hospital, Chitwan | I50: Province 3
A51: Std_1.1.2 | B51: =Standards!$D$6 -> All HMC members have received an orientation on HMC functions | C51: =Standards!$E$6 -> 0 | H51: Bakulahar Ratna Nagar Hospital, Chitwan | I51: Province 3
A52: Std_1.1.3 | B52: =Standards!$D$7 -> Medical Superintendent/ Director is fulfill as per organogram | C52: =Standards!$E$7 -> 0 | H52: Bardibas Hospital, Mahottari | I52: Province 3
A53: Std_1.1.4.1 | B53: =Standards!$D$8 -> HMC meetings called upon by member secretary / Medical Superintendent headed by chairperson conducted at least 3 times per year or as per need | C53: =Standards!$E$8 -> 0 | H53: Chautara Hospital, Sindhupalchowk | I53: Province 3
A54: Std_ 1.1.4.2.1 | B54: =Standards!$D$10 -> Hospital services and utilization | C54: =Standards!$E$10 -> 0 | H54: Dhading District Hospital | I54: Province 3
A55: Std_ 1.1.4.2.2 | B55: =Standards!$D$11 -> Hospital’s financial issues | C55: =Standards!$E$11 -> 0 | H55: Hetauda Hospital, Makwanpur | I55: Province 3
A56: Std_1.1.4.2.3 | B56: =Standards!$D$12 -> Patient rights issues e.g. patient facilities, analysis of complaints received, patient security | C56: =Standards!$E$12 -> 0 | H56: Jaleshwor Hospital, Mahottari | I56: Province 3
A57: Std_1.1.4.2.4 | B57: =Standards!$D$13 -> Management issues- HR issues, security issues | C57: =Standards!$E$13 -> 0 | H57: Jiri Hospital, Dolkha | I57: Province 3
A58: Std_1.1.4.2.5 | B58: =Standards!$D$14 -> Infrastructure/ Equipment issues | C58: =Standards!$E$14 -> 0 | H58: Methinkot Hospital, Kavre | I58: Province 3
A59: Std_1.1.4.2.6 | B59: =Standards!$D$15 -> Coordination issues with local governance- rural municipality/ municipality, provincial, federal, DoHS, MoHP | C59: =Standards!$E$15 -> 0 | H59: Ramechhap District Hospital | I59: Province 3
A60: Std_1.1.4.2.7 | B60: =Standards!$D$16 -> Review of decisions and recommendations of staff meeting and QI Committee meetings discussions | C60: =Standards!$E$16 -> 0 | H60: Rasuwa District Hospital | I60: Province 3
A61: Std_1.1.5.1 | B61: =Standards!$D$17 -> Hospital implements health insurance program | C61: =Standards!$E$17 -> 0 | H61: Sindhuli District Hospital | I61: Province 3
A62: Std_1.1.5.2 | B62: =Standards!$D$18 -> All targeted women receive Aama Surakhsya program incentives on time from hospital having this program (in last quarter) | C62: =Standards!$E$18 -> 0 | H62: Trishuli Hospital, Nuwakot | I62: Province 3
A63: Std_1.1.6 | B63: =Standards!$D$19 -> Annual plan & budget is approved by HMC before the fiscal year starts | C63: =Standards!$E$19 -> 0 | H63: Bandipur Hospital, Tanahun | I63: Province 4
A64: Std_1.1.7 | B64: =Standards!$D$20 -> There is a separate locker for HMC documents. | C64: =Standards!$E$20 -> 0 | H64: Beni Hospital, Myagdi | I64: Province 4
A65: Std_1.1.8.1 | B65: =Standards!$D$21 -> Updated citizens charter is displayed | C65: =Standards!$E$21 -> 0 | H65: Chapakot Hospital, Syangja | I65: Province 4
A66: Std_1.1.8.2 | B66: =Standards!$D$22 -> Notices of public concern are displayed publicly | C66: =Standards!$E$22 -> 0 | H66: Damauli Hospital, Tanahun | I66: Province 4
A67: Std_1.1.8.3 | B67: =Standards!$D$23 -> Complaint boxes are kept in a visible place in administration block | C67: =Standards!$E$23 -> 0 | H67: Gorkha District Hospital | I67: Province 4
A68: Std_1.1.8.4 | B68: =Standards!$D$24 -> Information officer opens complaint box at least once a week and issues are timely addressed | C68: =Standards!$E$24 -> 0 | H68: Manang District Hospital | I68: Province 4
A69: Std_1.1.8.5 | B69: =Standards!$D$25 -> Hospital has a website available and functional with latest information | C69: =Standards!$E$25 -> 0 | H69: Matri Sishu Miteri Hospital, Kaski | I69: Province 4
A70: Std_1.1.8.6 | B70: =Standards!$D$26 -> Hospital has geriatrics friendly infrastructure (like side rails for mobilization and support) | C70: =Standards!$E$26 -> 0 | H70: Mustang District Hospital | I70: Province 4
A71: Std_1.1.8.7 | B71: =Standards!$D$27 -> Hospital has friendly environment for people with disability | C71: =Standards!$E$27 -> 0 | H71: Parbat District Hospital | I71: Province 4
A72: Std_1.1.9.1 | B72: =Standards!$D$28 -> Mechanism for grievance and complain handling institutionalized | C72: =Standards!$E$28 -> 0 | H72: Sisuwa Hospital, Kaski | I72: Province 4
A73: Std_1.1.9.2 | B73: =Standards!$D$29 -> Grievance and complains are effectively addressed | C73: =Standards!$E$29 -> 0 | H73: Sundar Bazar, Lamjung | I73: Province 4
A74: Std_ 1.1.10 | B74: =Standards!$D$30 -> Hospital its own operational manual with clear information on how the hospital operates its’ services | C74: =Standards!$E$30 -> 0 | H74: Syangja District Hospital | I74: Province 4
A75: Std_1.1.11 | B75: =Standards!$D$31 -> Hospital Annual Report is available in website | C75: =Standards!$E$31 -> 0 | H75: Taulihawa Hospital, Kapilvastu | I75: Province 5
A76: Std_1.1.12 | B76: =Standards!$D$32 -> Social audit is conducted for last year | C76: =Standards!$E$32 -> 0 | H76: Arghakhanchi (Sandhikharka) | I76: Province 5
A77: Std_1.1_Total | B77: =Standards!$D$33 -> Total Score | C77: =Standards!$E$33 -> 0 | H77: Bardaghat Hospital, Parasi | I77: Province 5
A78: Std_1.1_Percent | B78: =Standards!$D$34 -> Percentage = Total Score / 27 x 100 | C78: =Standards!$E$34 -> 0 | H78: Bhim Hospital, Rupandehi | I78: Province 5
A79: Std_1.2.1.1 | B79: =Standards!$D$39 -> Organogram of hospital showing departments/units with number of staffs is displayed | C79: =Standards!$E$39 -> 0 | H79: Dullu Hospital, Dailekh | I79: Province 5
A80: Std_1.2.1.2 | B80: =Standards!$D$40 -> Organogram of hospital is reviewed every 2 years and forwarded to higher authority | C80: =Standards!$E$40 -> 0 | H80: Gulariya Hospital, Bardiya | I80: Province 5
A81: Std_ 1.2.2 | B81: =Standards!$D$43 -> Written delegation of authorities is maintained | C81: =Standards!$E$43 -> 0 | H81: Gulmi District Hospital | I81: Province 5
A82: Std_1.2.3 | B82: =Standards!$D$44 -> Navigation chart with services and departments guiding clients to access services | C82: =Standards!$E$44 -> 0 | H82: Lamahi Hospital, Dang | I82: Province 5
A83: Std_1.2.4 | B83: =Standards!$D$45 -> Hospital implements token and / or queue system for users (separate for elderly, disable and pregnant) | C83: =Standards!$E$45 -> 0 | H83: Mehelkuna Hospital, Surkhet | I83: Province 5
A84: Std_1.2.5 | B84: =Standards!$D$46 -> All staffs of hospital use electronic attendance | C84: =Standards!$E$46 -> 0 | H84: Palpa District Hospital | I84: Province 5
A85: Std_1.2.6.1 | B85: =Standards!$D$47 -> All clinical, technical and administrative staffs have apron / uniform which is worn on duty | C85: =Standards!$E$47 -> 0 | H85: Pipara Hospital, Kapilvastu | I85: Province 5
A86: Std_1.2.6.2 | B86: =Standards!$D$48 -> All hospital staffs carry personal ID cards when on duty | C86: =Standards!$E$48 -> 0 | H86: Prithivi Chandra Hospital, Parasi | I86: Province 5
A87: Std_ 1.2.7.1 | B87: =Standards!$D$49 -> Hand-over meetings are conducted daily and also in concerned department | C87: =Standards!$E$49 -> 0 | H87: Prithivi Chandra Hospital, Parasi | I87: Province 5
A88: Std_1.2.7.2 | B88: =Standards!$D$50 -> Morning conference is conducted everyday | C88: =Standards!$E$50 -> 0 | H88: Pyuthan District Hospital | I88: Province 5
A89: Std_1.2.7.3.1 | B89: =Standards!$D$52 -> Intra- departmental meeting every two weeks | C89: =Standards!$E$52 -> 0 | H89: Rampur Hospital, Palpa | I89: Province 5
A90: Std_1.2.7.3.2 | B90: =Standards!$D$53 -> Inter-departmental meeting once a month | C90: =Standards!$E$53 -> 0 | H90: Rolpa District Hospital | I90: Province 5
A91: Std_1.2.7.3.3 | B91: =Standards!$D$54 -> Staff meeting once a month | C91: =Standards!$E$54 -> 0 | H91: Rukum Hospital, Rukum (East) | I91: Province 5
A92: Std_1.2.7.4 | B92: =Standards!$D$55 -> Staff quarters are provided and adequate for the staffs | C92: =Standards!$E$55 -> 0 | H92: Salyan District Hospital | I92: Province 5
A93: Std_1.2.7.5 | B93: =Standards!$D$56 -> Separate space allocated for breast feeding for staffs/ Separate space in duty room designated for breast feeding | C93: =Standards!$E$56 -> 0 | H93: Shibaraj Hospital, Kapilvastu | I93: Province 5
A94: Std_1.2.7.6 | B94: =Standards!$D$57 -> Transport services for hospital staffs covering all shifts | C94: =Standards!$E$57 -> 0 | H94: Dailekh District Hospital | I94: Province 6
A95: Std_1.2_Total | B95: =Standards!$D$58 -> Total Score | C95: =Standards!$E$58 -> 0 | H95: Dolpa District Hospital | I95: Province 6
A96: Std_1.2_Percent | B96: =Standards!$D$59 -> Percentage = Total Score / 16 x 100 | C96: =Standards!$E$59 -> 0 | H96: Humla District Hospital | I96: Province 6
A97: Std_1.3.1 | B97: =Standards!$D$65 -> Personnel administration guideline of HMC is available (for all staffs including locally hired staff) and practiced accordingly | C97: =Standards!$E$65 -> 0 | H97: Jajarkot District Hospital | I97: Province 6
A98: Std_1.3.2 | B98: =Standards!$D$66 -> Individual records of all staffs including contract staffs are maintained and updated. | C98: =Standards!$E$66 -> 0 | H98: Kalikot District Hospital | I98: Province 6
A99: Std_1.3.3.1 | B99: =Standards!$D$67 -> Staffs available for service in hospital as per organogram (See Annex 1.3a Functional Organogram Section I: At the end of this standard) | C99: =Standards!$E$67 -> 0 | H99: Mugu District Hospital | I99: Province 6
A100: Std_1.3.3.2 | B100: =Standards!$D$68 -> Maaga Akriti form (माग आकृति फारम) correspondence to fulfill vacant positions to concerned authority as per guideline | C100: =Standards!$E$68 -> 0 | H100: Rukum Hospital, Rukum (West) | I100: Province 6
A101: Std_1.3.4 | B101: =Standards!$D$69 -> All staffs including HMC staffs are given a job description when they are recruited/ posted to the hospital (permanent and contract staff) | C101: =Standards!$E$69 -> 0 | H101: Achham District Hospital | I101: Province 7
A102: Std_1.3.5.1 | B102: =Standards!$D$70 -> Performance appraisal (का. स. मु.) of all staffs is done as per guideline | C102: =Standards!$E$70 -> 0 | H102: Baitadi District Hospital | I102: Province 7
A103: Std_1.3.6.1 | B103: =Standards!$D$71 -> A training plan for the hospital is developed based on the training needs of the staff identified at the performance appraisal | C103: =Standards!$E$71 -> 0 | H103: Bajhang District Hospital | I103: Province 7
A104: Std_1.3.6.2 | B104: =Standards!$D$72 -> For training and related activities, at any point of time, the acceptable work absenteeism is <10% of staff | C104: =Standards!$E$72 -> 0 | H104: Bajura District Hospital | I104: Province 7
A105: Std_1.3.6.3 | B105: =Standards!$D$73 -> There is activity conducted to motivate staff (staff retreat, rewards, recognition of performances, etc.) at least once a year. | C105: =Standards!$E$73 -> 0 | H105: Dadeldhura District Hospital | I105: Province 7
A106: Std_1.3.6.4 | B106: =Standards!$D$74 -> Hospital has system for addressing occupational hazard like needle stick injury, radiation exposure, vaccination | C106: =Standards!$E$74 -> 0 | H106: Darchula (Gokuleshwor) | I106: Province 7
A107: Std_1.3.7.1 | B107: =Standards!$D$75 -> Hospital conducts CPD / CME classes to technical staff weekly | C107: =Standards!$E$75 -> 0 | H107: Darchula District Hospital | I107: Province 7
A108: Std_1.3.7.2 | B108: =Standards!$D$76 -> Written record of attendance, subjects presented and discussed during CPD/CME | C108: =Standards!$E$76 -> 0 | H108: Doti District Hospital | I108: Province 7
A109: Std_1.3.7.3 | B109: =Standards!$D$77 -> Separate space with furniture, audio-visual aids and internet for CPD/CME/meeting are available. | C109: =Standards!$E$77 -> 0 | H109: Malakheti Hospital, Kailali | I109: Province 7
A110: Std_1.3.7.4 | B110: =Standards!$D$78 -> If hospital is a training site, training guideline of National Health Training Centre is followed | C110: =Standards!$E$78 -> 0 | H110: Tikapur Hospital, Kailali | I110: Province 7
A111: Std_1.3.8.1 | B111: =Standards!$D$79 -> Hospital has space designated for library with sitting arrangement for readers | C111: =Standards!$E$79 -> 0
A112: Std_1.3.8.2 | B112: =Standards!$D$80 -> A list of national health guidelines and treatment protocols available and inventory managed for readers accessing it | C112: =Standards!$E$80 -> 0
A113: Std_1.3.8.3 | B113: =Standards!$D$81 -> Computers with printing and photocopy facility available | C113: =Standards!$E$81 -> 0
A114: Std_1.3.8.6 | B114: =Standards!$D$82 -> Access to internet facility with institutional access to at least one of the international health related domain like HINARI | C114: =Standards!$E$82 -> 0
A115: Std_1.3_Total | B115: =Standards!$D$83 -> Total Score | C115: =Standards!$E$83 -> 0
A116: Std_1.3_Percent | B116: =Standards!$D$84 -> Percentage = Total Score / 19 x 100 | C116: =Standards!$E$84 -> 0
A117: Std_1.4.1.1 | B117: =Standards!$D$90 -> Dedicated account department of hospital with space and furniture | C117: =Standards!$E$90 -> 0
A118: Std_1.4.1.2 | B118: =Standards!$D$91 -> At least one accountant available for hospital financial management | C118: =Standards!$E$91 -> 0
A119: Std_1.4.2.1 | B119: =Standards!$D$92 -> An annual hospital budget is developed incorporating the revenue from services, government grants, and support provided by other organizations. | C119: =Standards!$E$92 -> 0
A120: Std_1.4.2.2 | B120: =Standards!$D$93 -> Internal income is reviewed during budgeting every year. | C120: =Standards!$E$93 -> 0
A121: Std_1.4.3 | B121: =Standards!$D$94 -> The service fees of the hospital are fixed by HMC every year. | C121: =Standards!$E$94 -> 0
A122: Std_1.4.4 | B122: =Standards!$D$95 -> Daily income is deposited in the bank every day. | C122: =Standards!$E$95 -> 0
A123: Std_1.4.5.1 | B123: =Standards!$D$96 -> Budget absorption rate of last fiscal year is as per national target | C123: =Standards!$E$96 -> 0
A124: Std_1.4.5.2 | B124: =Standards!$D$97 -> Internal audit, financial and physical progress review is done at least once each trimester (once in every 4 months). | C124: =Standards!$E$97 -> 0
A125: Std_ 1.4.5.3 | B125: =Standards!$D$98 -> Final audit/ external audited accounts are available for last year. | C125: =Standards!$E$98 -> 0
A126: Std_1.4.6.1 | B126: =Standards!$D$99 -> The hospital uses central electronic billing system | C126: =Standards!$E$99 -> 0
A127: Std_1.4.6.2 | B127: =Standards!$D$100 -> The hospital uses TABUCS/ LMBIS for accounting including local income and expenses by HMC. | C127: =Standards!$E$100 -> 0
A128: Std_1.4.7.1 | B128: =Standards!$D$101 -> The hospital prepares and keeps monthly financial report. | C128: =Standards!$E$101 -> 0
A129: Std_1.4.7.2 | B129: =Standards!$D$102 -> Trimester financial report is produced (every 4 months) and financial status tracked and discussed in meetings | C129: =Standards!$E$102 -> 0
A130: Std_1.4.7.3 | B130: =Standards!$D$103 -> Annual financial report is submitted to HMC. | C130: =Standards!$E$103 -> 0
A131: Std_1.4.8.1 | B131: =Standards!$D$104 -> Financial irregularities are responded within 35 days | C131: =Standards!$E$104 -> 0
A132: Std_1.4.8.2 | B132: =Standards!$D$105 -> Clearance of financial authorities is done as per national target | C132: =Standards!$E$105 -> 0
A133: Std_1.4.9 | B133: =Standards!$D$106 -> Inventory inspection is done once in a year and managed accordingly | C133: =Standards!$E$106 -> 0
A134: Std_1.4_Total | B134: =Standards!$D$107 -> Total Score | C134: =Standards!$E$107 -> 0
A135: Std_1.4_Percent | B135: =Standards!$D$108 -> Percentage = Total Score / 17 x 100 | C135: =Standards!$E$108 -> 0
A136: Std_1.5.1.1 | B136: =Standards!$D$114 -> Client registration is digitalized using standard software | C136: =Standards!$E$114 -> 0
A137: Std_1.5.1.2 | B137: =Standards!$D$115 -> Referral in and out records are kept using the standard form (HMIS 1.4) and register. | C137: =Standards!$E$115 -> 0
A138: Std_1.5.1.3 | B138: =Standards!$D$116 -> Electronic health record system that generates the HMIS monthly report (HMIS 9.4) is in place | C138: =Standards!$E$116 -> 0
A139: Std_1.5.2.1 | B139: =Standards!$D$117 -> There is a functional Medical Record Section | C139: =Standards!$E$117 -> 0
A140: Std_1.5.2.2 | B140: =Standards!$D$118 -> All patients' records are kept in individual folders in racks or held digitally. | C140: =Standards!$E$118 -> 0
A141: Std_1.5.2.3 | B141: =Standards!$D$119 -> There is a set of functional computer and printer available for maintaining medical records. | C141: =Standards!$E$119 -> 0
A142: Std_1.5.3.1 | B142: =Standards!$D$120 -> Hospital monthly reports (HMIS 9.4) of the last three months are shared to the national database | C142: =Standards!$E$120 -> 0
A143: Std_1.5.3.2 | B143: =Standards!$D$121 -> Hospital services utilization statistics are analyzed at least every month and shared with all the HODs and in-charge via email, paper and/or dashboard. (Check last three months status) | C143: =Standards!$E$121 -> 0
A144: Std_1.5.3.3 | B144: =Standards!$D$122 -> Statistics including OPD morbidity pattern data, IPD data, surveillance data are analyzed and discussed in staff meeting and CPD/CME (Check the status in the last meeting) | C144: =Standards!$E$122 -> 0
A145: Std_1.5.3.4 | B145: =Standards!$D$123 -> Key statistics of service utilization is displayed in respective Departments/ Wards | C145: =Standards!$E$123 -> 0
A146: Std_1.5.3.5 | B146: =Standards!$D$124 -> Medico-legal incidents and services are recorded | C146: =Standards!$E$124 -> 0
A147: Std_1.5.4.1 | B147: =Standards!$D$125 -> Medical recorder is trained on ICD and DHIS2 | C147: =Standards!$E$125 -> 0
A148: Std_1.5.4.2 | B148: =Standards!$D$126 -> An information officer is specified to communicate with patients/clients, their relatives, media and other stakeholders. | C148: =Standards!$E$126 -> 0
A149: Std_1.5.4.3 | B149: =Standards!$D$127 -> Contact details of information officer is displayed in hospital premises with photo and phone number. | C149: =Standards!$E$127 -> 0
A150: Std_1.5_Total | B150: =Standards!$D$128 -> Total Score | C150: =Standards!$E$128 -> 0
A151: Std_1.5_Percent | B151: =Standards!$D$129 -> Percentage = Total Score / 14 x 100 | C151: =Standards!$E$129 -> 0
A152: Std_1.6.1.1 | B152: =Standards!$D$135 -> Hospital QI committee is formed according to Guideline. | C152: =Standards!$E$135 -> 0
A153: Std_1.6.1.2 | B153: =Standards!$D$136 -> Hospital QHSDMS committee meetings are held at least every 4 months. | C153: =Standards!$E$136 -> 0
A154: Std_1.6.2 | B154: =Standards!$D$137 -> The hospital has a statement of patient rights and responsibilities, which is posted in public places in the hospital. | C154: =Standards!$E$137 -> 0
A155: Std_1.6.3 | B155: =Standards!$D$138 -> The findings of social audit like client exit interview are shared in whole staff meeting | C155: =Standards!$E$138 -> 0
A156: Std_1.6.4 | B156: =Standards!$D$139 -> The hospital has assessed the hospital quality using the MSS tool at least every 4 months | C156: =Standards!$E$139 -> 0
A157: Std_1.6.5 | B157: =Standards!$D$140 -> The hospital has developed specific plans to improve quality based on the MSS assessment. | C157: =Standards!$E$140 -> 0
A158: Std_1.6.6 | B158: =Standards!$D$141 -> Hospital uses QI tools for assessment of the major priority government programs (less than 50%=0, 50-70% =1, 70-85% = 2, 85-100% =3) | C158: =Standards!$E$141 -> 0
A159: Std_1.6.7.1 | B159: =Standards!$D$142 -> Hospital has implemented the specific activities based on the MSS plan. | C159: =Standards!$E$142 -> 0
A160: Std_1.6.7.2 | B160: =Standards!$D$143 -> Hospital has implemented specific activities based on gap analysis of QI tools | C160: =Standards!$E$143 -> 0
A161: Std_1.6.8.1 | B161: =Standards!$D$144 -> The hospital has functional MPDSR committee (in program district) | C161: =Standards!$E$144 -> 0
A162: Std_1.6.8.2.1 | B162: =Standards!$D$146 -> Investigations and complications of treatment including medication error | C162: =Standards!$E$146 -> 0
A163: Std_1.6.8.2.2 | B163: =Standards!$D$147 -> Hospital acquired infections (HAI) | C163: =Standards!$E$147 -> 0
A164: Std_1.6.8.3 | B164: =Standards!$D$148 -> Mortality audit of every death in the hospital is done and reported | C164: =Standards!$E$148 -> 0
A165: Std_1.6.8.4 | B165: =Standards!$D$149 -> Hospital implements Robson’s classification (hospitals with CEONC services) | C165: =Standards!$E$149 -> 0
A166: Std_1.6.8.5 | B166: =Standards!$D$150 -> Hospital implements baby friendly initiative | C166: =Standards!$E$150 -> 0
A167: Std_1.6_Total | B167: =Standards!$D$151 -> Total Score | C167: =Standards!$E$151 -> 0
A168: Std_1.6_Percent | B168: =Standards!$D$152 -> Percentage = Total Score/17 x 100 | C168: =Standards!$E$152 -> 0
A169: Std_2.1.1.1 | B169: =Standards!$D$159 -> OPD is open from 10 AM to 3 PM (See Checklist 2.1 At the end of this standard for scoring). | C169: =Standards!$E$159 -> 0
A170: Std_2.1.1.2 | B170: =Standards!$D$160 -> Tickets for routine OPD are available till 2 pm | C170: =Standards!$E$160 -> 0
A171: Std_2.1.1.3 | B171: =Standards!$D$161 -> EHS services from 3PM onwards and tickets available from 2PM onwards | C171: =Standards!$E$161 -> 0
A172: Std_2.1.2.1 | B172: =Standards!$D$162 -> There should be one administrator to manage all OPDs and procedure room | C172: =Standards!$E$162 -> 0
A173: Std_2.1.2.2 | B173: =Standards!$D$163 -> Doctor: OPD Patients- 1:35-50 per day for quality of care (*for dental services this ratio is 1:20) | C173: =Standards!$E$163 -> 0
A174: Std_2.1.1.2.3 | B174: =Standards!$D$164 -> One screening counter with 1 paramedics for every four OPDs and there should be one nurse in OBGYN OPD | C174: =Standards!$E$164 -> 0
A175: Std_2.1.3 | B175: =Standards!$D$165 -> Patient privacy maintained with separate rooms, curtains hung, maintaining queuing of patients with paging system in OPD (See Checklist 2.1 At the end of this standard for scoring). | C175: =Standards!$E$165 -> 0
A176: Std_2.1.4.1 | B176: =Standards!$D$166 -> Counseling is provided to patients about the type of treatment being given and its consequences (See Checklist 2.1 At the end of this standard for scoring). | C176: =Standards!$E$166 -> 0
A177: Std_ 2.1.4.2 | B177: =Standards!$D$167 -> Appropriate IEC materials (posters, leaflets etc.) as an IEC corner available in the OPD waiting area. | C177: =Standards!$E$167 -> 0
A178: Std_2.1.5.1 | B178: =Standards!$D$168 -> Adequate rooms and space for the practitioners and patients are available (See Checklist 2.1 At the end of this standard for scoring). | C178: =Standards!$E$168 -> 0
A179: Std_2.1.5.2 | B179: =Standards!$D$169 -> Light and ventilation are adequately maintained. (See Checklist 2.1 At the end of this standard for scoring) | C179: =Standards!$E$169 -> 0
A180: Std_2.1.5.3.1 | B180: =Standards!$D$171 -> General Medicine OPD (See Annex 2.1a Furniture and supplies for OPD At the end of this standard) | C180: =Standards!$E$171 -> 0
A181: Std_2.1.5.3.2 | B181: =Standards!$D$172 -> Obstetrics and Gynecology OPD (See Annex 2.1a Furniture and supplies for OPD At the end of this standard) | C181: =Standards!$E$172 -> 0
A182: Std_2.1.5.3.3 | B182: =Standards!$D$173 -> Pediatrics OPD (See Annex 2.1a Furniture and supplies for OPD At the end of this standard) | C182: =Standards!$E$173 -> 0
A183: Std_2.1.5.3.4 | B183: =Standards!$D$174 -> Surgical OPD (See Annex 2.1a Furniture and supplies for OPD At the end of this standard) | C183: =Standards!$E$174 -> 0
A184: Std_2.1.5.3.5 | B184: =Standards!$D$175 -> Dental OPD (See Annex 2.1a Furniture and supplies for OPD At the end of this standard) | C184: =Standards!$E$175 -> 0
A185: Std_2.1.5.3.6 | B185: =Standards!$D$176 -> Orthopedics OPD (See Annex 2.1a Furniture and supplies for OPD At the end of this standard) | C185: =Standards!$E$176 -> 0
A186: Std_2.1.5.3.7 | B186: =Standards!$D$177 -> Psychiatry OPD (See Annex 2.1a Furniture and supplies for OPD At the end of this standard) | C186: =Standards!$E$177 -> 0
A187: Std_2.1.5.3.8 | B187: =Standards!$D$178 -> ENT OPD (See Annex 2.1a Furniture and supplies for OPD At the end of this standard) | C187: =Standards!$E$178 -> 0
A188: Std_2.1.5.3.9 | B188: =Standards!$D$179 -> Dermatology OPD (See Annex 2.1a Furniture and supplies for OPD At the end of this standard) | C188: =Standards!$E$179 -> 0
A189: Std_2.1.5.3.10 | B189: =Standards!$D$180 -> Opthalmology OPD (See Annex 2.1a Furniture and supplies for OPD At the end of this standard) | C189: =Standards!$E$180 -> 0
A190: Std_2.1.5.3.11 | B190: =Standards!#REF! ->  | C190: =Standards!$E$181 -> 0
A191: Std_2.1.5.3.12 | B191: =Standards!#REF! ->  | C191: =Standards!$E$182 -> 0
A192: Std_2.1.5.3.13 | B192: =Standards!#REF! ->  | C192: =Standards!$E$183 -> 0
A193: Std_2.1.5.3.14 | B193: =Standards!#REF! ->  | C193: =Standards!$E$184 -> 0
A194: Std_2.1.5.3.15 | B194: =Standards!#REF! ->  | C194: =Standards!$E$185 -> 0
A195: Std_2.1.5.3.16 | B195: =Standards!#REF! ->  | C195: =Standards!$E$187 -> 0
A196: Std_2.1.5.4 | B196: =Standards!$D$188 -> Each OPD has designated space/room for procedure room/area with basic supplies of dressing, injection and procedures (specific to OPD like PV for Obstetrics /gynecology, PR for surgery) and hand washing facility (See Checklist 2.1 At the end of this standard for scoring) | C196: =Standards!$E$188 -> 0
A197: Std_2.1.6.1 | B197: =Standards!$D$190 -> General OPD (See Annex 2.1b Basic Equipment and Instrument for OPD At the end of this standard) | C197: =Standards!$E$190 -> 0
A198: Std_2.1.6.2 | B198: =Standards!$D$191 -> Obstetrics and Gynecology OPD (See Annex 2.1b Basic Equipment and Instrument for OPD At the end of this standard) | C198: =Standards!$E$191 -> 0
A199: Std_2.1.6.3 | B199: =Standards!$D$192 -> Pediatrics OPD (See Annex 2.1b Basic Equipment and Instrument for OPD At the end of this standard) | C199: =Standards!$E$192 -> 0
A200: Std_2.1.6.4 | B200: =Standards!$D$193 -> Surgical OPD(See Annex 2.1b Basic Equipment and Instrument for OPD At the end of this standard) | C200: =Standards!$E$193 -> 0
A201: Std_2.1.6.5.1 | B201: =Standards!$D$194 -> Dental OPD (See Annex 2.1cBasic Equipment and Instrument for Dental OPD At the end of this standard) | C201: =Standards!$E$194 -> 0
... 4608 more rows
